Cogmind - Beta 16.1 @@@ ROGUE MODE // 2026.04.29 @ 15:49:49 Player: AngelSpirit Result: Destroyed by MAIN.C with Improved Heavy Machine Gun Performance ------------- Evolutions (9) 4500 Regions Visited (35) 7000 Robots Destroyed (1383) 6915 Value Destroyed (85191) 85191 Prototype IDs (204) 4080 Alien Tech Used (3) 600 Bonus (87862) 87862 TOTAL SCORE: 196148 Bonus ------- Triggered High Security 1500 High Alert Combat Kills 48791 Follower Combat Kills 2727 Hunted by Unchained 1500 Destroyed Unchained 2000 Entered Garrisons 1200 Used RIF Installer 4000 Network Hubs Disabled 400 Met Data Miner 300 Met Zhirov 300 Built Enhanced Grunts 300 A7 Reached Mainframe 300 Met R17 at Cetus 500 Read Decrypted Archives 300 Scanned by Researcher 500 Destroyed Superfortress 15000 Met MAIN.C 5000 Hacked MAIN.C 300 Destroyed MAIN.C Shell 5000 Friendly Fire -2056 Cogmind --------- Core Integrity 0/1600 Matter 168/300 Energy 1459/1494 System Corruption 3% Temperature Warm (195) Movement Walking (69) Location -1/Command Parts ------- > --- POWER (3) -------- Zero-point Reactor Multi-Quantum Reactor > --- PROPULSION (5) --- Biometal-Armored Exoskeleton > --- UTILITY (12) ----- Armored Scrap Engine Concept Thermoelectric Network Concept Antigrav Storage Unit Concept Countertargeting System Experimental Core Analyzer Improved Armor Integrity Analyzer Advanced Kinecellerator (fused) Experimental Weapon Cycler Heavy Reflective Plating > --- WEAPON (5) ------- Advanced Remote Datajack Hpw. Ballistic Rail Construct/C > --- INVENTORY (25) --- Concept Chromion Battery (800) Concept NT7 Matterbank (750) Concept NT7 Matterbank (621) Long-range Terrain Scanner Experimental Reaction Control System Layered Heavy Armor Plating Graphene Brace Improved Focal Shield Thermal Barrier Concept Antimissile System Concept Matter Streamer High-powered Transdimensional Reconstructor Peak State ------------ > --- POWER ------------ Zero-point Reactor Multi-Quantum Reactor > --- PROPULSION ------- Biometal-Armored Exoskeleton > --- UTILITY ---------- Armored Scrap Engine Concept Phasing Heat Sink Concept Antigrav Storage Unit Spectral Analyzer Concept Countertargeting System Experimental Core Analyzer Experimental Weapon Cycler Heavy Regenerative Plating Concept Beam Splitter Concept Energy Mantle > --- WEAPON ----------- Hpw. Ballistic Rail Construct/C Concept Deflector Sword > --- INVENTORY -------- Experimental Coolant Injector Concept Thermoelectric Network Concept Thermoelectric Network Concept Chromion Battery Experimental Matter Compressor Concept NT7 Matterbank Concept NT7 Matterbank Long-range Sensor Array Long-range Terrain Scanner Concept Weapon Articulator Improved Armor Integrity Analyzer Advanced Kinecellerator Concept Reaction Jets Experimental EM Shield Concept Energy Mantle Concept Antimissile System Experimental System Purifier Experimental System Purifier Concept Matter Streamer High-powered Transdimensional Reconstructor [Rating: 262] Favorites ----------- Power Constructs Engine Light Ion Engine Power Core Meta Core Reactor Constructs Propulsion Constructs Treads Light Treads Leg Constructs Wheel Wheel Hover Unit Improved Antigrav System Utility Armored Scrap Engine Device Armored Scrap Engine Storage Huge Storage Unit Processor Advanced Signal Interpreter Hackware Hacking Suite Protection Heavy Regenerative Plating Artifact Phase Armor Weapon Constructs Energy Gun High-powered Shock Rifle Energy Cannon Subdweller Beam Cannon Ballistic Gun Assault Rifle Ballistic Cannon Constructs Launcher Tiamat Missile Launcher Special Weapon Improved Remote Datajack Impact Weapon Impact Mace Slashing Weapon Concept Deflector Sword Piercing Weapon Plasma Lance Special Melee Weapon Datajack Build | -11 -10 -10 -9 -7 -7 -7 -7 -6 -6 -6 -6 -6 -6 -6 -5 -5 -5 -5 -4 -4 -4 -4 -4 -4 -4 -4 -4 -4 -3 -3 -2 -2 -2 -1 -1 ------- Run | Yrd Mat Sub Rec Fac Low Low Dat Pro Fac Ext Cet Arc Hub Gar Fac Was Fac Gar Fac Was Fac Gar Fac Gar Fac Gar Fac Gar Res Tes Res Qua Frg Acc Com Slots Evolved 18 | . . . . 6 . . . . 2 . . . . . 2 . . . 2 . . . . . . . . . 2 . 2 . . 2 . Power 2 | . . . . . . . . . . . . . . . . . . . 1 . . . . . . . . . . . . . . 1 . Propulsion 3 | . . . . 2 . . . . . . . . . . 1 . . . . . . . . . . . . . . . . . . . . Utility 10 | . . . . 3 . . . . 2 . . . . . 1 . . . . . . . . . . . . . 1 . 2 . . 1 . Weapon 3 | . . . . 1 . . . . . . . . . . . . . . 1 . . . . . . . . . 1 . . . . . . Parts Attached 349 | 7 13 19 12 24 7 3 . 3 14 3 1 1 2 7 6 2 17 5 5 . 11 4 8 5 15 7 6 6 27 14 8 10 25 35 17 Power 5 | 1 1 1 . 1 . . . . . . . . . . . . . . . . . . . . . . . . . . . . . 1 . Engine 1 | 1 . . . . . . . . . . . . . . . . . . . . . . . . . . . . . . . . . . . Core 3 | . 1 1 . 1 . . . . . . . . . . . . . . . . . . . . . . . . . . . . . . . Reactor 1 | . . . . . . . . . . . . . . . . . . . . . . . . . . . . . . . . . . 1 . Propulsion 12 | 2 4 4 1 1 . . . . . . . . . . . . . . . . . . . . . . . . . . . . . . . Treads 2 | . 2 . . . . . . . . . . . . . . . . . . . . . . . . . . . . . . . . . . Leg 2 | . . 2 . . . . . . . . . . . . . . . . . . . . . . . . . . . . . . . . . Wheel 7 | 2 2 2 1 . . . . . . . . . . . . . . . . . . . . . . . . . . . . . . . . Hover 1 | . . . . 1 . . . . . . . . . . . . . . . . . . . . . . . . . . . . . . . Flight . | . . . . . . . . . . . . . . . . . . . . . . . . . . . . . . . . . . . . Utility 234 | 2 3 5 7 14 7 1 . 3 9 1 1 . 1 6 5 2 15 4 3 . 7 4 7 5 12 3 5 4 19 5 7 9 22 23 13 Device 126 | 1 . 2 2 3 6 . . 1 3 . . . . 4 1 1 10 1 1 . 6 4 3 4 7 1 2 1 9 4 4 6 16 14 9 Storage 18 | 1 2 . 2 4 . . . 1 1 . . . . . . . 1 . . . 1 . . . 2 . . . 2 . . . 1 . . Processor 26 | . . . . 2 . . . . 3 . . . . . 1 . 1 . 1 . . . 1 . 1 . . . 3 . 1 1 2 7 2 Hackware 42 | . . . 1 3 . . . . 2 1 . . . 1 3 1 2 3 1 . . . 3 1 2 2 3 3 4 . 2 . 2 2 . Protection 21 | . 1 3 2 2 1 1 . 1 . . 1 . 1 1 . . 1 . . . . . . . . . . . 1 1 . 2 . . 2 Artifact 1 | . . . . . . . . . . . . . . . . . . . . . . . . . . . . . . . . . 1 . . Weapon 98 | 2 5 9 4 8 . 2 . . 5 2 . 1 1 1 1 . 2 1 2 . 4 . 1 . 3 4 1 2 8 9 1 1 3 11 4 Energy Gun 13 | . . . . 2 . . . . . . . . . . . . . 1 1 . 1 . . . . 2 . 1 2 2 . . . 1 . Energy Cannon 19 | . 1 5 1 1 . . . . 2 1 . . . . . . 1 . . . 1 . . . 1 . . . 1 2 . 1 . . 1 Ballistic Gun 14 | 2 2 . 1 . . . . . 1 1 . 1 . . . . 1 . 1 . . . . . . . . . 1 1 . . . 2 . Ballistic Cannon 13 | . 1 1 . 1 . . . . . . . . 1 . . . . . . . . . . . . 1 1 . . 1 1 . . 5 . Launcher 15 | . . 1 1 2 . . . . 1 . . . . . . . . . . . 1 . . . 1 . . . 1 2 . . 1 2 2 Special Weapon 8 | . 1 1 . 1 . . . . . . . . . . 1 . . . . . . . . . 1 . . 1 . 1 . . . . 1 Impact Weapon 4 | . . . 1 1 . . . . . . . . . . . . . . . . . . . . . . . . 2 . . . . . . Slashing Weapon 8 | . . . . . . 2 . . 1 . . . . . . . . . . . 1 . . . . 1 . . 1 . . . 1 1 . Piercing Weapon 3 | . . . . . . . . . . . . . . 1 . . . . . . . . 1 . . . . . . . . . 1 . . Special Melee Weapon 1 | . . 1 . . . . . . . . . . . . . . . . . . . . . . . . . . . . . . . . . Unidentified Prototypes 86 | . . . 1 5 . . . 1 7 . 1 1 1 . . . 8 . 3 . 4 . 3 . 3 1 1 . 14 10 3 3 8 7 1 Parts Lost 59 | . 1 2 2 6 . . . . 1 1 . . . . 2 . 4 3 . . . 1 . 1 3 1 1 . 3 1 3 . 1 8 14 Power 6 | . 1 . . 2 . . . . . . . . . . . . . 1 . . . . . . . . . . . . . . . 1 1 Propulsion 6 | . . . 1 1 . . . . 1 1 . . . . . . . . . . . . . . . . . . . . . . 1 . 1 Utility 31 | . . 1 1 2 . . . . . . . . . . 1 . 4 2 . . . 1 . 1 1 . 1 . 1 . 3 . . 4 8 Weapon 16 | . . 1 . 1 . . . . . . . . . . 1 . . . . . . . . . 2 1 . . 2 1 . . . 3 4 Highest Loss Streak 8 | . 1 1 2 3 . . . . 1 1 . . . . 2 . 2 1 . . . 1 . 1 2 1 1 . 2 1 1 . 1 2 8 To Critical Strikes 2 | . . . . . . . . . . . . . . . . . . . . . . 1 . . . . . . . . . . . 1 . Average Backups 18 | 1 10 7 16 10 18 18 18 18 18 18 19 14 12 17 18 18 20 23 24 23 24 24 24 24 23 24 22 22 22 21 19 20 23 22 17 Power . | . . . . . . . . . . . . . . . . . . . . . 1 1 1 1 . . . . . . . . . . . Propulsion . | 1 4 1 3 . . . . . . . . . . . . . . 1 3 2 1 . . . . . . . . . . . . . . Utility 13 | . 1 2 5 5 12 14 14 14 13 12 9 9 10 13 13 14 15 17 18 17 19 20 21 19 20 20 20 19 20 18 16 15 18 19 15 Weapon 2 | . 3 2 3 2 5 3 3 3 3 5 8 4 1 3 2 2 3 2 1 1 1 1 1 1 1 2 1 . 1 1 1 1 1 1 . Tool/Special . | . . . . . . . . . . . . . . . . . . . . . . . . . . . . . . . . . . . . Unused Backups 141 | . 3 3 21 12 2 2 . . 9 1 2 5 . 8 . . 1 5 . 3 7 2 . 3 4 5 3 5 4 5 . 3 6 9 8 Power 3 | . . . 1 . . . . . . . . . . . . . . . . . 1 . . . 1 . . . . . . . . . . Propulsion 13 | . 1 . 4 1 1 . . . . . . . . . . . . 1 . 3 2 . . . . . . . . . . . . . . Utility 71 | . . . 13 7 . . . . 4 1 1 . . 1 . . . 2 . . 4 2 . 3 2 3 . 5 3 5 . 2 4 2 7 Weapon 48 | . 2 3 2 4 1 2 . . 5 . 1 5 . 7 . . 1 2 . . . . . . 1 2 3 . 1 . . . . 6 . Tool/Special 6 | . . . 1 . . . . . . . . . . . . . . . . . . . . . . . . . . . . 1 2 1 1 Average Slot Usage (%) 65 | . 99 89 90 63 65 66 66 65 68 67 68 68 67 67 65 66 65 63 56 57 56 57 56 54 56 62 60 59 57 59 59 57 56 54 56 Core 3 | . 11 14 10 1 6 6 6 6 5 6 6 6 6 6 5 5 5 . . . . . . . . . . . . . . . . . . Reactor 2 | . . . . . . . . . . . . . . . . . . 4 5 5 5 5 5 5 5 5 5 5 4 4 4 4 3 4 4 Treads 1 | . 2 1 . 1 . . . . . . . . . . . . 4 5 5 4 5 5 5 . . . . . . . . 2 3 2 . Leg 3 | . . 18 2 1 6 6 6 4 . . . 1 6 5 2 . . . . . . . . . . . . . 1 4 3 2 . 1 3 Wheel 3 | . 25 7 22 . . . . . . . . . . . . . . . . . . . . . . . . . . . . . . . . Hover 1 | . . . . 7 6 6 6 7 3 . . 3 . . 2 5 . . . . . . . . . . . . . . . . . . . Device 14 | . 12 3 5 13 12 11 13 12 10 9 12 12 17 12 12 8 12 18 13 10 12 15 14 16 20 20 16 21 9 13 16 14 21 23 27 Storage 5 | . 14 4 10 5 6 6 6 6 5 6 6 6 6 6 5 5 5 5 5 5 5 5 5 5 5 5 5 5 4 4 4 4 4 4 4 Processor 7 | . . . . 7 6 6 6 6 12 18 18 18 12 12 13 16 15 12 10 10 10 10 10 6 5 5 5 5 9 16 13 16 7 5 8 Hackware 4 | . . . 8 1 6 6 6 6 11 8 6 6 6 9 11 13 7 . 1 5 5 5 5 5 5 5 6 3 12 2 7 4 1 1 . Protection 2 | . 1 9 . . . 1 . . . . . . . 1 . . 1 1 4 5 2 . . 1 . . . . . . . . 3 4 1 Energy Cannon 6 | . 5 23 22 1 6 9 6 6 4 5 6 2 6 4 5 5 4 2 2 . 1 3 5 3 . . . 1 2 3 4 . . . 3 Ballistic Cannon 2 | . 9 3 . 3 . . . . . . . 3 . 1 . . . 2 2 5 3 1 . 1 4 1 3 2 1 2 . 3 3 3 . Slashing Weapon 1 | . . . . . . . 6 4 . 5 5 5 5 5 1 . . . . . 1 4 . . . . . . . 2 3 3 2 3 1 Peak Build Rating 262 | 7 10 31 41 86 88 88 84 90 104 103 109 113 112 121 122 124 139 150 150 152 163 162 167 164 155 156 149 155 163 183 199 217 259 262 261 Average Rating 134 | 5 9 25 24 60 85 85 84 85 93 102 103 109 108 114 120 121 129 141 142 148 154 158 161 148 148 149 138 145 147 166 187 197 227 246 225 On Entrance 121 | . 7 10 20 41 86 83 84 84 87 103 102 104 108 109 117 121 118 139 142 141 152 157 158 164 150 144 149 133 144 152 173 196 206 243 257 Avg Prop Armor Cover (%) 3 | . . 9 . 3 2 2 3 3 . . . . . . . . . . . . . . . . . . . . . . . . . . . Naked Turns . | . . . . . . . . . . . . . . . . . . . . . . . . . . . . . . . . . . . . Heaviest Build 222 | 12 54 71 118 63 74 71 61 63 71 80 83 80 69 75 70 78 109 128 124 148 162 150 142 142 140 143 145 148 145 159 154 188 222 178 178 Greatest Support 310 | 26 40 50 40 111 111 112 112 124 124 112 112 119 119 158 150 150 158 238 238 310 310 310 310 310 216 216 160 160 177 165 165 212 241 241 167 Greatest Overweight (x) 7 | . 2 6 7 1 . . . . . . . 1 . . . . . . . . . . . . . . . . 1 . . 1 1 1 1 Average Overweight (x) . | . 1 . 3 . . . . . . . . . . . . . . . . . . . . . . . . . . . . . . . . Largest Inventory Capacity 25 | 8 20 20 25 20 20 20 20 20 20 20 20 20 20 20 20 20 25 25 25 25 25 25 25 25 25 25 25 25 25 25 25 25 25 25 25 Average Capacity 21 | 7 17 10 20 11 20 20 20 20 20 20 20 20 20 20 20 20 23 25 25 25 25 25 25 25 25 25 25 25 25 25 25 25 25 25 25 Most Carried 25 | 4 13 20 25 19 20 20 18 20 20 20 20 20 14 20 20 19 25 25 25 25 25 25 25 25 25 25 25 25 25 25 22 25 25 25 25 Average Carried 19 | 1 10 8 18 10 18 18 18 18 19 19 19 15 13 18 19 19 21 24 24 24 24 24 24 24 23 24 22 22 23 24 20 21 24 23 18 Final Capacity 25 | 8 20 20 5 20 20 20 20 20 20 20 20 20 20 20 20 20 25 25 25 25 25 25 25 25 25 25 25 25 25 25 25 25 25 25 25 Final Carried 25 | 4 12 19 5 19 20 18 18 20 20 20 20 14 14 20 19 19 24 25 25 25 25 25 24 25 25 25 20 25 25 23 21 23 24 24 13 Scrap Engine Consumption 639 | . . . 34 66 5 8 . 4 25 8 12 22 2 21 17 3 12 27 15 7 12 12 5 7 17 19 6 17 23 10 1 21 54 100 47 Constructs Created 8 | . . . 3 1 . . . . . . . . . . . . 1 1 . . . . . . . . . . . . . . . 1 1 Constructs Modified 273 | . . . 9 27 . 4 . 2 3 4 . 16 . 11 4 . 4 20 7 6 3 4 . 7 2 11 3 6 12 3 2 7 22 54 20 Class Distribution -------------------- 38% | Construct 11% | Bothacker-Construct 9% | Mutant 8% | Hacker-Construct 4% | Botlord-Construct 4% | Subdweller-Mutant 3% | Commander-Mutant 3% | Trapper-Construct 3% | Commander-Construct Dominant Class ---------------- Mutant | -10/Materials Subdweller-Mutant | -10/Subcaves Commander-Mutant | -9/Recycling Construct | -7/Factory Construct | -7/Lower Caves Construct | -7/Lower Caves Construct | -7/Data Miner Trapper-Construct | -6/Proximity Caves Trapper-Construct | -6/Factory Commander-Construct | -6/Extension Commander-Construct | -6/Cetus Commander-Construct | -6/Archives Construct | -6/Hub_04(d) Hacker-Construct | -6/Garrison Hacker-Assassin | -5/Factory Hacker-Construct | -5/Waste Construct | -5/Factory Construct | -5/Garrison Bothacker-Construct | -4/Factory Bothacker-Construct | -4/Waste Bothacker-Construct | -4/Factory Bothacker-Construct | -4/Garrison Bothacker-Construct | -4/Factory Bothacker-Construct | -4/Garrison Construct | -4/Factory Botlord-Construct | -4/Garrison Botlord-Construct | -4/Factory Botlord-Construct | -4/Garrison Construct | -3/Research Construct | -3/Testing Hacker-Construct | -2/Research Hacker-Construct | -2/Quarantine Construct | -2/Protoforge Construct | -1/Access Construct | -1/Command Resources | -11 -10 -10 -9 -7 -7 -7 -7 -6 -6 -6 -6 -6 -6 -6 -5 -5 -5 -5 -4 -4 -4 -4 -4 -4 -4 -4 -4 -4 -3 -3 -2 -2 -2 -1 -1 ----------- Run | Yrd Mat Sub Rec Fac Low Low Dat Pro Fac Ext Cet Arc Hub Gar Fac Was Fac Gar Fac Was Fac Gar Fac Gar Fac Gar Fac Gar Res Tes Res Qua Frg Acc Com Matter Collected 41945 | 261 823 584 885 748 525 294 . 212 792 586 146 426 . 349 406 . 658 697 405 420 1019 574 867 660 672 662 181 694 731 988 438 419 5941 16412 2470 Remotely 13249 | . . . . . . . . . . . . . . . . . . . . . . . . . . . . . . . . . 2956 9176 1117 Salvage Created 85662 | 98 728 1183 700 1368 283 813 . 367 1150 1177 176 949 262 1458 911 . 1403 1330 866 1608 2365 2764 2198 1849 2343 1442 191 2160 1461 1707 1933 1493 7808 26563 12555 Parts 3058 | 4 57 81 34 45 8 22 . 15 39 47 3 45 16 80 38 . 65 52 26 27 99 131 87 64 104 76 18 110 47 51 27 60 301 794 385 Haulers Intercepted 43 | . 2 . . 6 . . . . 4 . . . . . 3 . 1 . 2 . 3 . 5 . 4 . . . 5 2 4 . . 2 . Recyclers Shooed 10 | . 1 . 1 1 . . . . . . . . . . . . 2 . 2 . . . 1 . 2 . . . . . . . . . . Parts Field Recycled 53 | . . . 42 . 11 . . . . . . . . . . . . . . . . . . . . . . . . . . . . . . Retrieved Matter 288 | . . . 99 . 189 . . . . . . . . . . . . . . . . . . . . . . . . . . . . . . Parts Self-Destructed 51 | . . 17 . . 6 8 . 20 . . . . . . . . . . . . . . . . . . . . . . . . . . . Prevented 4 | . . . . . . 1 . 3 . . . . . . . . . . . . . . . . . . . . . . . . . . . Parts Restored 10 | . . . . . . . . . . . . . . . . . . . . . . . . . . . . . . . . . 10 . . Faulty 10 | . . . . . . . . . . . . . . . . . . . . . . . . . . . . . . . . . 10 . . Kills | -11 -10 -10 -9 -7 -7 -7 -7 -6 -6 -6 -6 -6 -6 -6 -5 -5 -5 -5 -4 -4 -4 -4 -4 -4 -4 -4 -4 -4 -3 -3 -2 -2 -2 -1 -1 ------- Run | Yrd Mat Sub Rec Fac Low Low Dat Pro Fac Ext Cet Arc Hub Gar Fac Was Fac Gar Fac Was Fac Gar Fac Gar Fac Gar Fac Gar Res Tes Res Qua Frg Acc Com Combat Hostiles Destroyed 1161 | . 15 29 7 18 6 18 . 7 11 20 2 . 3 23 8 . 29 25 8 6 24 33 19 37 33 36 6 40 17 11 22 16 110 337 185 Melee 48 | . . . . 3 . 1 . . 1 . . . . 3 5 . 2 2 . . . . . . . 4 2 4 2 . . . 14 3 2 Guns 28 | . 11 . 1 3 . . . . . . . . . . . . . . . . . . . . . 11 1 1 . . . . . . . Cannons 780 | . 4 27 4 6 4 1 . 4 6 19 2 . 3 20 3 . 7 14 4 6 20 30 16 23 11 4 . 14 10 10 6 9 74 290 129 AOE 254 | . . 2 2 3 2 8 . 3 . . . . . . . . 20 8 4 . . 3 3 13 19 17 3 21 4 . 11 . 21 36 51 Classes Destroyed 39 | 2 7 5 4 2 3 . . 1 . . . . . . . . 4 . . 1 . 1 . 1 . . . . . 1 2 1 2 2 . Worker 45 | . 3 . . 2 . . . . 6 . . . . . . . 5 . . . 2 . 3 . 11 . 1 . . 4 1 . . 7 . Builder 31 | . 1 . . 1 . . . . . 1 . . 1 . . . 2 . . . 2 . 1 . 3 . . . . 2 2 . 3 12 . Tunneler 5 | 1 3 . . . . . . . . . . . . . . . 1 . . . . . . . . . . . . . . . . . . Hauler 43 | . 2 . . 6 . . . . 4 . . . . . 3 . 1 . 2 . 3 . 5 . 4 . . . 5 2 4 . . 2 . Recycler 26 | 1 . . 3 2 . . . . 1 1 . . . . . . 3 . 2 . 1 . 2 . 2 . . . . 2 1 . . 2 3 Carrier 9 | . . . . . . . . . . . . . . . . . . . . . . . . . . . . . . . 1 . . 3 5 Minesweeper 1 | . . . . . . . . 1 . . . . . . . . . . . . . . . . . . . . . . . . . . . Mechanic 20 | . . . . . . . . . . . . . . . . . 1 . . . . . 1 . . . . . . . . . 1 8 9 Operator 17 | . 2 . . 3 . . . . 2 1 . . . . 2 . . . . . . . 2 . . . 1 1 . . 1 . 1 1 . Drone 12 | . . . . . . . . . . . . . . . . . . . . . . . . . . . . . . . 1 . 10 1 . Turret 11 | . . 2 . . . . . . . . . . . . . . . . . . . . . . . . . . . . . . . 9 . Watcher 69 | . 3 . . 5 . . . . 1 2 1 . 1 . 1 . 3 . 4 . 4 2 4 . 5 . . . 3 2 6 1 4 11 6 Swarmer 159 | . 6 5 . . . 7 . 4 . 4 . . . 3 . . 9 8 5 . . 5 3 15 14 12 3 19 7 . 8 . . 9 13 Cutter 12 | . . . . . . . . . . . . . . . . . . . . . . 5 . 2 . . . . . . . . . 5 . Saboteur 35 | . . . . . . . . . . . . . . . . . 2 . . . . . . . . . . . . . . . 3 18 12 Grunt 370 | . 9 . . 8 3 3 . 2 4 6 . . 1 10 3 . 5 4 2 . 4 10 5 8 7 11 . 10 5 4 9 3 35 128 71 Brawler 46 | . . . . 1 . . . . . . . . . . . . 1 . . . . . . 3 . 1 . . . . . . 3 23 14 Duelist 43 | . . . . . 1 . . 1 . . . . . . . . . 1 . . . . . 1 . 2 1 . . . . . 6 19 11 Protector 33 | . . . . . . . . . . . . . . . . . 1 . . . . . . . . . . . . . . . 4 19 9 Researcher 5 | . . . . . . . . . . . . . . . . . . . . . . . . . . . . . . 4 . . 1 . . Sentry 92 | . . 1 3 2 . 1 . . 3 7 . . 2 7 2 . 3 8 1 . 6 4 1 6 2 4 . 1 4 . 2 . 13 8 1 Demolisher 4 | . . . 1 . . . . . . . . . . . . . . . . . . . . . . . . . . . . . . 3 . Specialist 13 | . . . . . . . . . . . . . . . . . 5 . . . . 2 . . . 1 . . . . . . 1 2 2 Hunter 61 | . . . . 1 . 2 . . . . . . . 2 1 . 2 . . . 6 5 4 . 5 . . . . 4 2 . 9 13 5 Programmer 130 | . . . 1 6 1 . . . 4 . . . . 1 2 . 1 3 . . 8 2 6 2 5 5 2 9 . 2 . . 13 41 16 Heavy 4 | . . . . . . . . . . . . . . . . . . . . . . . . . . . . . . . . . . 2 2 Behemoth 14 | . . . . . 1 1 . . . 2 . . . . . . . 1 . . . 1 . 1 . . . 1 . . . . . 5 1 Compactor 6 | . . . . . . . . . . . . . . . . . . . . 6 . . . . . . . . . . . . . . . Cetus Guard 2 | . . . . . . . . . . . 2 . . . . . . . . . . . . . . . . . . . . . . . . Quarantine Guard 12 | . . . . . . . . . . . . . . . . . . . . . . . . . . . . . . . . 12 . . . Enhanced Grunt 5 | . . . . . . . . . . . . 5 . . . . . . . . . . . . . . . . . . . . . . . Decapitator 6 | . . . . . . . . . . . . . . . . . . . . . . . . . . . . . . . . . 6 . . Immortal 2 | . . . . . . . . . . . . . . . . . . . . . . . . . . . . . . . . . 2 . . Investigator 6 | . . . . . . . . . . . . . . . . . . . . . . . . . . . . . . . . . . 4 2 Striker 32 | . . . . . . . . . . . . . . . . . . . . . . . . 1 . . . . 1 . . . 1 14 15 Executioner 38 | . . . . . . . . . . . . . . . . . . . . . . . . . . . . . . . . . . 26 12 Alpha 7 2 | . . . . . . . . . . . . . . . . . . . . . . . . . . . . . . . . . 2 . . Fortress 1 | . . . . . . . . . . . . . . . . . . . . . . . . . . . . . . . . 1 . . . V-Series 1 | . . . . . . . . . . . . . . . . . . . . . . . . . . . . . . . . . 1 . . Artisan 1 | . . 1 . . . . . . . . . . . . . . . . . . . . . . . . . . . . . . . . . Cobbler 1 | . . 1 . . . . . . . . . . . . . . . . . . . . . . . . . . . . . . . . . Subdweller 23 | . . 23 . . . . . . . . . . . . . . . . . . . . . . . . . . . . . . . . . Scientist 2 | . . . 2 . . . . . . . . . . . . . . . . . . . . . . . . . . . . . . . . Scrapper 3 | . . . 3 . . . . . . . . . . . . . . . . . . . . . . . . . . . . . . . . Samaritan 1 | . . . . . 1 . . . . . . . . . . . . . . . . . . . . . . . . . . . . . . Thug 7 | . . . . . . 4 . . . . . 3 . . . . . . . . . . . . . . . . . . . . . . . Butcher 1 | . . . . . . . . . . 1 . . . . . . . . . . . . . . . . . . . . . . . . . Guerrilla 2 | . . . . . . . . . . . 1 1 . . . . . . . . . . . . . . . . . . . . . . . Best Kill Streak 120 | 2 5 5 4 4 4 6 . 3 3 4 3 . 3 4 2 . 21 9 6 2 5 5 10 16 14 10 3 10 5 9 15 3 31 120 62 Combat Bots Only 110 | . 5 4 3 4 4 6 . 3 2 3 2 . 2 4 2 . 14 9 6 2 3 5 7 16 8 10 3 10 4 7 12 3 31 110 58 Max Kills in Single Turn 7 | 1 2 2 2 2 2 4 . 1 1 3 1 1 1 1 1 . 6 4 4 1 1 1 3 3 7 4 2 4 2 2 4 1 6 5 6 Gunslinging . | . . . . . . . . . . . . . . . . . . . . . . . . . . . . . . . . . . . . Exploded 6 | . . 2 1 1 2 4 . 1 . . . . . . . . 4 4 4 . . 1 3 3 3 4 2 4 2 . 4 . 6 5 6 Melee 1 | . . . . 1 . 1 . . 1 . . . . 1 1 . 1 1 . . . . . . . 1 1 1 1 . . . 1 1 1 Uniques/NPCs Destroyed 4 | . . . . . . . . . . . . . . . . . . . . . . . . . . . . . . 1 . . 1 1 1 DW-4LL (-3/Testing) Superfortress (-2/Protoforge) GL-D0S (-1/Access) MAIN.C Shell (-1/Command) Combat | -11 -10 -10 -9 -7 -7 -7 -7 -6 -6 -6 -6 -6 -6 -6 -5 -5 -5 -5 -4 -4 -4 -4 -4 -4 -4 -4 -4 -4 -3 -3 -2 -2 -2 -1 -1 -------- Run | Yrd Mat Sub Rec Fac Low Low Dat Pro Fac Ext Cet Arc Hub Gar Fac Was Fac Gar Fac Was Fac Gar Fac Gar Fac Gar Fac Gar Res Tes Res Qua Frg Acc Com Hostile Shots Fired 5601 | . 41 90 20 224 22 68 . 7 72 84 . . 31 204 67 1 141 114 31 . 160 135 145 125 250 194 113 236 124 125 64 56 278 1537 842 Missed 2170 | . 10 29 5 98 8 28 . 2 37 39 . . 14 78 22 1 44 26 9 . 56 46 48 57 139 67 47 149 38 67 22 13 126 639 206 Deflected 159 | . . . . . . . . . . . . . . . . . . . . . . . . . . . . . . . . . 11 101 47 Hits 3431 | . 31 61 15 126 14 40 . 5 35 45 . . 17 126 45 . 97 88 22 . 104 89 97 68 111 127 66 87 86 58 42 43 152 898 636 Melee 75 | . . . . . . . . . . . . . . . . . 1 . . . . 3 . 4 . 1 . . 1 . . . 13 14 38 Projectile 3356 | . 31 61 15 126 14 40 . 5 35 45 . . 17 126 45 . 96 88 22 . 104 86 97 64 111 126 66 87 85 58 42 43 139 884 598 AOE 20 | . . 4 . . . . . . . . . . . . . . . . . . 1 2 . 1 . . . . . . 1 . 3 6 2 Critical Strikes 170 | . 1 1 2 4 1 2 . . 1 . . . 1 . 2 . 2 4 2 . 6 7 4 7 2 12 4 6 3 1 4 2 11 46 32 Actively Blocked 1 | . . . . . . . . . . . . . . . . . . . . . . . . 1 . . . . . . . . . . . Part Disruptions 7 | . . . . . . . . . . . . . . . . . . . . . . . . . . . . 1 . . 4 . . . 2 Damage Taken 50592 | . 345 1150 341 1668 319 682 . 83 511 499 37 . 185 1340 953 . 1906 1522 320 . 1036 1082 1789 1577 2093 895 508 406 1839 558 706 1437 4084 10849 9872 Core 4172 | . 76 81 69 323 52 97 . 30 57 40 . . . 183 78 . 152 88 . . 70 92 75 156 147 69 96 26 157 53 35 110 153 712 895 Absorbed by Shields 15079 | . . . 11 17 . . . . . 62 14 . . . . . . . . . 543 700 78 159 52 962 408 457 198 294 299 99 201 7270 3255 Reduced by Siege Mode 501 | . . . . . . . . . . . . . . . . . . 81 . . 33 20 27 . . . . . . . . 309 13 18 . Ignored by Resistances 10328 | . . . . . . . . . . . . . . . . . . 425 109 . 414 68 201 51 46 919 350 851 100 149 . . 165 1399 5081 Regen/Repaired (Parts) 27372 | . . . . 598 69 311 . 79 208 151 . 238 . 847 185 . 556 1261 114 868 500 664 100 2289 653 905 62 399 1351 44 940 1018 1556 7628 3778 Core Remaining (%) 58 | 100 . . 9 . . . . 28 . . . . . 67 . . . 68 . . . . . . . . . 36 . 83 . . 73 . . Volleys Fired 2877 | 3 71 93 20 92 16 22 . 14 22 37 15 26 13 59 20 3 42 73 63 65 91 73 93 111 75 111 25 99 93 86 60 56 216 578 341 Largest 2 | 2 2 2 2 2 2 2 . 1 1 1 1 1 1 1 1 1 1 1 1 1 1 1 1 2 2 2 1 2 1 1 1 1 1 1 2 Hottest 263 | 40 100 160 160 108 138 148 . 118 118 162 162 30 131 191 182 10 182 263 116 56 136 136 136 185 163 94 51 69 52 66 88 208 136 100 151 Shots Fired 3041 | 6 140 169 42 92 17 24 . 14 22 37 14 26 13 59 20 3 41 73 63 65 91 73 93 111 76 112 25 100 93 86 60 56 211 572 342 Gun 215 | 6 83 . 5 33 . . . . . . . . . . . . . . . . . . . . . 76 11 1 . . . . . . . Cannon 2492 | . 56 164 34 48 16 18 . 6 22 37 5 . 13 59 10 . 28 67 61 65 86 66 72 84 52 21 . 85 69 76 54 52 197 555 314 Launcher 162 | . . 1 3 6 1 6 . 3 . . . . . . . . 13 2 1 . 5 7 . 9 17 11 4 9 4 . 6 1 9 17 27 Special 172 | . 1 4 . 5 . . . 5 . . 9 26 . . 10 3 . 4 1 . . . 21 18 7 4 10 5 20 10 . 3 5 . 1 Kinetic 1533 | 6 118 39 5 41 . . . . 6 21 . . . 11 8 . 12 20 23 65 46 29 . 36 49 42 11 84 22 31 . 22 195 555 36 Thermal 1111 | . 22 129 34 40 16 6 . 5 16 16 14 26 13 48 2 . 16 47 38 . 40 37 72 60 3 47 . 2 47 28 2 10 7 . 268 Explosive 127 | . . 1 3 6 1 6 . 3 . . . . . . . . 13 2 1 . . . . . 3 11 4 9 4 . 6 1 9 17 27 Electromagnetic 163 | . . . . . . 12 . 6 . . . . . . . . . . . . 5 7 . 9 14 8 . . . 17 52 23 . . 10 Robot Hit Streak 37 | 2 8 9 17 12 8 8 . 8 13 15 9 9 5 5 10 2 8 15 5 8 21 11 16 8 10 9 9 12 13 16 10 15 22 26 37 Robot Miss Streak 14 | 1 5 4 5 4 4 3 . 3 5 7 8 4 1 2 2 1 2 3 6 3 6 6 5 5 5 4 4 4 5 8 4 1 14 5 4 Penetration Max 2 | . . . . . . . . . . . . . . . . . . . 1 1 . . . . 1 1 . . . 2 1 . 2 2 . Secondary Targets 1 | . 1 . . . . . . . . . . . . . . . . . . . . . . . . . . . . . . . . . . Max Gunslinging Chain 1 | . 1 . . . . . . . . . . . . . . . . . . . . . . . . . . . . . . . . . . Capacitor 111 | . . . . . . . . . . . . . . . . . . . . . . . . . . . . . 6 . . . . . 105 Shots Hit Robots 2367 | 3 82 85 27 88 16 31 . 11 44 36 15 43 7 49 40 2 37 66 33 44 78 89 73 75 53 83 26 121 75 34 30 38 142 431 260 Core Hits 1800 | 3 39 37 14 32 16 20 . 14 26 54 14 26 4 22 18 . 77 33 16 9 64 75 29 63 66 67 16 92 32 20 30 17 137 339 279 Critical Kills 34 | . . 2 . 1 . . . . . . . . . 2 . . 1 . . . . . . . . . . . 1 2 2 1 1 13 8 Critical Parts Destroyed 64 | . . . . 8 . 3 . . 5 . . . . 5 . . . 1 1 . . . . . . . . . 4 2 . . 2 13 20 Critical Strikes 131 | . 1 4 . 9 . 3 . . 5 . . 1 . 8 5 . 2 6 1 . . 3 1 . 1 1 1 2 8 4 2 1 5 28 29 Meltdown 4 | . . . . . . . . . . . . . . . . . . . . . . . . . . . . . . 1 2 1 . . . Destroy 81 | . . 4 . . . . . . . . . . . 7 . . 1 3 1 . . . . . . . . . 3 3 . . 3 27 29 Blast 1 | . 1 . . . . . . . . . . . . . . . . . . . . . . . . . . . . . . . . . . Smash 20 | . . . . 9 . 3 . . 5 . . . . . . . . . . . . . . . . . . . 3 . . . . . . Sever 7 | . . . . . . . . . . . . 1 . 1 . . . . . . . 3 . . . . . . . . . . 1 1 . Impale 18 | . . . . . . . . . . . . . . . 5 . 1 3 . . . . 1 . 1 1 1 2 2 . . . 1 . . Melee Attacks 779 | . . . 1 97 11 20 . 2 56 1 5 29 . 41 48 . 18 22 2 . 25 68 12 11 31 26 23 52 51 9 36 13 49 20 . Impact 205 | . . . 1 97 11 14 . . 53 . . . . . . . . . . . . . . . . . . . 29 . . . . . . Slashing 296 | . . . . . . 6 . 2 3 1 5 29 . 41 15 . . . . . 11 68 . . . . . . 4 9 36 13 33 20 . Piercing 278 | . . . . . . . . . . . . . . . 33 . 18 22 2 . 14 . 12 11 31 26 23 52 18 . . . 16 . . Sneak Attacks 104 | . . . 1 12 1 . . 1 10 1 5 21 . 2 6 . 3 . . . 4 1 4 . 4 2 . 1 5 . 3 . 15 2 . Combat Hostiles 1 | . . . . . . . . . . . . . . . 1 . . . . . . . . . . . . . . . . . . . . Follow-up Attacks . | . . . . . . . . . . . . . . . . . . . . . . . . . . . . . . . . . . . . Damage Inflicted 378977 | 32 1189 2087 980 4163 1204 2103 . 666 3037 3016 804 2515 568 3487 1932 . 6061 5745 3249 3799 6106 7404 7923 6734 8591 5822 956 7291 4879 4523 7818 7562 54119 137798 64814 Guns 3004 | 32 562 . 47 449 . . . . . . . . . . . . . . . . . . . . . 1620 275 19 . . . . . . . Cannons 300015 | . 627 1952 687 961 952 607 . 232 1074 2880 353 . 550 2865 480 . 1610 4195 2581 3799 5142 5059 7072 5836 3347 1185 . 2409 2338 4102 5059 7210 47352 127660 49839 Explosions 52003 | . . 100 177 572 134 599 . 272 . . . . . . . . 3976 855 668 . 520 209 482 833 4614 2517 452 2264 917 191 2046 74 4972 9584 14975 Melee 23305 | . . . 69 2181 118 897 . 150 1963 136 408 2381 . 622 1452 . 442 695 . . 330 2136 369 . 630 500 229 2599 1624 49 713 267 1791 554 . Ramming 346 | . . . . . . . . . . . . . 18 . . . 33 . . . 114 . . . . . . . . 181 . . . . . Kinetic 210454 | 32 977 253 47 759 . . . . 350 983 . . . 586 480 . 576 1327 1276 3799 3045 1675 . 2951 3199 1775 275 2409 648 966 . 3180 46778 127660 4448 Thermal 84194 | . 212 1734 687 855 952 . . 12 724 1897 396 134 550 2279 . . 1034 2868 1405 . 2162 3384 7554 3008 2793 839 . 19 1690 1272 394 1451 696 . 43193 Explosive 44586 | . . 100 177 368 134 599 . 272 . . . . . . . . 3976 855 469 . 42 . . . 629 2517 452 2264 917 . 1652 . 4854 9334 14975 Electromagnetic 16092 | . . . . . . 607 . 232 . . . . . . . . . . 99 . 413 209 . 775 1340 191 . . . 2055 5059 2664 . 250 2198 Impact 5574 | . . . 69 2181 118 501 . . 1815 . . . . . . . . . . . . . . . . . . . 890 . . . . . . Slashing 10376 | . . . . . . 396 . 150 148 136 408 2381 . 622 470 . . . . . 210 2136 . . . . . . 43 49 713 267 1693 554 . Piercing 7355 | . . . . . . . . . . . . . . . 982 . 442 695 . . 120 . 369 . 630 500 229 2599 691 . . . 98 . . Highest Corruption 14 | . . . 1 13 13 . . . 4 4 4 4 7 7 1 7 7 2 . . 4 3 6 8 9 . . 3 4 9 2 2 14 14 10 Average Corruption 4 | . . . 1 7 4 . . . 3 4 4 4 6 7 1 6 1 1 . . 1 1 3 7 6 . . 2 2 5 2 1 7 6 8 Corruption Purged 76 | . . . . . 13 . . . . . . . . . . . 6 . . . 4 . . . 15 . . . . . . 2 12 14 10 Corruption Blocked . | . . . . . . . . . . . . . . . . . . . . . . . . . . . . . . . . . . . . Effects 608 | . . . 35 101 17 . . . 29 28 8 16 8 33 2 2 8 10 . . 10 10 20 31 31 . . 12 8 14 11 6 63 57 38 Message Errors 143 | . . . 10 28 3 . . . 7 2 4 3 1 6 1 . 2 4 . . 2 4 7 6 6 . . 5 2 3 2 . 15 9 11 Matter Fused 153 | . . . 8 27 5 . . . 11 11 1 4 2 7 1 . 3 3 . . 2 1 6 9 5 . . 1 3 4 1 2 14 8 14 Heat Flow Errors 75 | . . . 6 11 2 . . . 2 3 1 1 3 6 . . 1 2 . . 3 2 2 6 2 . . . 1 1 3 1 7 8 1 Energy Discharges 82 | . . . 2 14 2 . . . 2 2 1 3 1 3 . 1 . 1 . . 1 1 2 4 6 . . 3 2 3 4 2 7 13 2 Parts Rejected 11 | . . . . 3 . . . . 2 . . . . 1 . . . . . . . . . . 2 . . . . . . . 1 1 1 Parts Fused 15 | . . . 1 1 . . . . 1 . . 1 . . . . . . . . 1 1 . 1 1 . . . . . . . 4 1 2 Data Loss (minor) 65 | . . . 3 13 4 . . . 2 6 . 1 1 6 . . 1 . . . . . 3 3 4 . . 2 . 1 1 . 6 5 3 Data Loss (major) 29 | . . . 1 2 1 . . . 1 2 . 3 . 3 . 1 . . . . 1 1 . . 3 . . 1 . 2 . 1 2 2 2 Misfires 3 | . . . 2 . . . . . . . . . . . . . . . . . . . . . . . . . . . . . . . 1 Alerts 14 | . . . 2 1 . . . . 1 2 . . . 1 . . . . . . . . . 1 2 . . . . . . . . 4 . Misdirections 2 | . . . . . . . . . . . . . . . . . . . . . . . . . . . . . . . . . 2 . . Weapon Failures 16 | . . . . 1 . . . . . . 1 . . . . . 1 . . . . . . 1 . . . . . . . . 5 6 1 Overload Shots 5 | . . . . 2 2 . . . . . 1 . . . . . . . . . . . . . . . . . . . . . . . . Overflow Damage 70531 | . 7 50 61 1200 130 429 . 11 824 82 58 496 50 372 62 . 363 606 501 27 248 339 1192 246 767 16 . 310 375 897 1306 507 13581 36412 9006 Projectiles 63555 | . 7 50 17 75 16 1 . 11 23 . 19 . 50 266 2 . 48 494 378 27 196 289 952 246 316 . . 21 77 845 954 475 13017 36048 8635 Explosions 1962 | . . . . 65 . 91 . . . . . . . . . . 151 70 123 . . . 51 . 393 15 . 142 43 23 129 . 9 286 371 Melee 5014 | . . . 44 1060 114 337 . . 801 82 39 496 . 106 60 . 164 42 . . 52 50 189 . 58 1 . 147 255 29 223 32 555 78 . Knockbacks 302 | . 7 4 . 9 . 1 . . 11 2 . . . 1 2 . 2 5 5 . 18 5 . 10 19 2 . 33 3 4 . . 25 129 5 Impact 17 | . . . . 6 . 1 . . 6 . . . . . . . 1 . . . . . . . . . . . 2 1 . . . . . Kinetic 250 | . 7 4 . 3 . . . . 4 2 . . . 1 2 . 1 5 5 . 17 5 . 9 18 2 . 33 1 3 . . 20 103 5 Secondary 35 | . . . . . . . . . 1 . . . . . . . . . . . 1 . . 1 1 . . . . . . . 5 26 . Self-Inflicted Damage 2485 | . . . 23 137 . 48 . . . . . . . . . . 179 . 34 . 33 14 219 59 164 48 . . . 56 104 . 122 108 1137 Shots 54 | . . . 1 3 . 1 . . . . . . . . . . 3 . 1 . 1 1 4 3 7 1 . . . 2 2 . 2 4 18 Rammed 5 | . . . . . . . . . . . . . . . . . 1 . . . 4 . . . . . . . . . . . . . . Targets Rammed 10 | . . . . . . . . . . . . . 1 . . . 1 . . . 4 . . . . . . . . 4 . . . . . Kicked 5 | . . . . . . . . . . . . . 1 . . . . . . . . . . . . . . . . 4 . . . . . Crushed . | . . . . . . . . . . . . . . . . . . . . . . . . . . . . . . . . . . . . Highest Temperature 497 | . 180 240 497 360 291 423 . 120 232 260 196 162 254 304 255 . 233 364 412 6 314 198 328 199 382 297 249 184 309 110 139 272 227 375 291 Average Temperature 126 | . 59 56 134 115 118 157 . 44 73 85 99 82 102 103 104 . 100 109 122 4 90 86 110 71 102 102 110 23 75 23 28 37 60 169 119 Received Heat Transfer 7710 | . 183 231 197 424 42 174 . 9 165 127 . . 54 393 117 . 399 279 94 . 59 49 168 263 180 295 143 266 464 51 50 561 315 1138 820 Thermoelectric Energy+ 332018 | . . . . . . . . . . . . . . . . . . . . . . . . . . . . . . . . . . 328597 3421 Effects 33 | . . 2 10 5 1 2 . . . . . . . . . . 1 . . . 4 . 4 . . . 1 . 1 . . . . 1 1 Shutdowns 4 | . . . 2 . . 1 . . . . . . . . . . . . . . 1 . . . . . . . . . . . . . . Energy Bleed 11 | . . . 1 4 . . . . . . . . . . . . . . . . 3 . 1 . . . 1 . . . . . . . 1 Interference 12 | . . 2 2 1 1 1 . . . . . . . . . . 1 . . . . . 3 . . . . . . . . . . 1 . Matter Decay 1 | . . . 1 . . . . . . . . . . . . . . . . . . . . . . . . . . . . . . . . Short Circuit 1 | . . . 1 . . . . . . . . . . . . . . . . . . . . . . . . . . . . . . . . Damage (minor) 2 | . . . 1 . . . . . . . . . . . . . . . . . . . . . . . . . 1 . . . . . . Damage (major) 2 | . . . 2 . . . . . . . . . . . . . . . . . . . . . . . . . . . . . . . . Siege Activations 16 | . . . . . . . . . . . . . . . . . . 5 . . 3 1 1 . . . . . . . . 2 2 2 . Total Turns 231 | . . . . . . . . . . . . . . . . . . 63 . . 36 4 25 . . . . . . . . 38 46 19 . Longest Duration 25 | . . . . . . . . . . . . . . . . . . 23 . . 16 4 25 . . . . . . . . 21 25 18 . Martial Activations . | . . . . . . . . . . . . . . . . . . . . . . . . . . . . . . . . . . . . Shielding Activations 5 | . . . . . . . . . . . . . . . . . . . . . . . . . . . . . . . . . . . 5 Total Turns 739 | . . . . . . . . . . . . . . . . . . . . . . . . . . . . . . . . . . . 739 Longest Duration 464 | . . . . . . . . . . . . . . . . . . . . . . . . . . . . . . . . . . . 464 Robots Disrupted . | . . . . . . . . . . . . . . . . . . . . . . . . . . . . . . . . . . . . Combat Hostiles . | . . . . . . . . . . . . . . . . . . . . . . . . . . . . . . . . . . . . Robots Corrupted 56 | . . . 1 8 1 8 . . 7 . . . . . . . . . . . 3 . . 1 3 . . . 1 3 6 6 1 5 2 Combat Hostiles 38 | . . . . 2 . 8 . . 3 . . . . . . . . . . . 3 . . 1 3 . . . 1 1 3 6 1 4 2 Parts Fried 200 | . . . 2 17 . 6 . . 6 . . . . . . . . . . . 8 . . 2 9 1 . . . 19 43 49 2 24 12 Impact Corruptions 107 | . . . 2 28 5 6 . . 24 . . . . . . . 1 . . . 2 . . . . . . . 5 2 . . 1 31 . Robots Melted 9 | . . . . 1 . . . . 1 1 . . . . . . . 1 . . 1 . . . . . . . . 1 2 1 . . . Combat Hostiles 8 | . . . . 1 . . . . 1 1 . . . . . . . 1 . . 1 . . . . . . . . . 2 1 . . . Parts Melted 100 | . . 3 2 10 4 . . 3 1 4 . . . . . . . 12 2 . 4 1 5 1 3 . . . . . . . . 37 8 Heat Transferred 33160 | . 444 2505 843 1175 1050 . . 75 407 2100 453 600 . 85 . . 1050 3350 716 . 1450 832 3186 1850 1601 814 . 25 839 600 350 84 199 . 6477 Parts Sabotaged 3 | . . . . . . . . . . . . . . . . . . . . . . . . . . . . . . . . . 1 2 . Parts Stolen . | . . . . . . . . . . . . . . . . . . . . . . . . . . . . . . . . . . . . Parts Stripped . | . . . . . . . . . . . . . . . . . . . . . . . . . . . . . . . . . . . . Power Chain Reactions 11 | . . . . 1 . . . . . . . . . . . . . . . . 1 . . 1 . . . . . 1 4 1 2 . . Alert | -11 -10 -10 -9 -7 -7 -7 -7 -6 -6 -6 -6 -6 -6 -6 -5 -5 -5 -5 -4 -4 -4 -4 -4 -4 -4 -4 -4 -4 -3 -3 -2 -2 -2 -1 -1 ------- Run | Yrd Mat Sub Rec Fac Low Low Dat Pro Fac Ext Cet Arc Hub Gar Fac Was Fac Gar Fac Was Fac Gar Fac Gar Fac Gar Fac Gar Res Tes Res Qua Frg Acc Com Maximum Alert Level 5 | . . . . 3 . . . . . 2 1 . . 3 2 . 3 5 3 1 1 5 4 5 5 5 5 5 4 2 3 2 5 5 5 Low Security (%) 28 | 100 100 . 100 . . . . . 100 57 82 100 100 15 50 100 84 . . 23 83 4 . . . . . . 3 . 14 11 . . . Level 1 13 | . . . . 29 . . . . . 24 17 . . 15 22 . 2 . . 76 16 4 . . . . . . 90 40 17 85 7 . . Level 2 7 | . . . . 39 . . . . . 17 . . . 27 26 . 9 6 . . . 10 . . 2 . . . 4 59 17 2 14 . . Level 3 9 | . . . . 31 . . . . . . . . . 41 . . 3 21 100 . . 6 53 23 60 . . 9 . . 50 . 13 . . Level 4 9 | . . . . . . . . . . . . . . . . . . 54 . . . 35 46 29 31 11 53 24 . . . . 33 7 . Level 5 10 | . . . . . . . . . . . . . . . . . . 16 . . . 37 . 45 6 88 46 65 . . . . 24 5 10 High Security 20 | . . . . . . . . . . . . . . . . . . . . . . . . . . . . . . . . . 6 86 89 Max Security . | . . . . . . . . . . . . . . . . . . . . . . . . . . . . . . . . . . . . Sterilizations 1 | . . . . . . . . . . . . . . . . . . . . . . . . . . . . . . . . . . 1 . Peak Influence 11122 | 5 138 . 85 956 . . . . 127 454 217 67 76 882 462 50 722 1644 1083 335 356 2189 1417 2409 1995 3233 1734 2474 1391 520 1064 651 3177 10034 11122 Initial 6421 | . 3 . 38 252 . . . . . 58 216 57 4 30 462 50 7 505 863 335 107 111 1148 682 1264 1396 1696 927 1391 231 288 597 183 1905 6421 Average 2397 | 1 69 . 6 551 . . . . 32 212 151 4 38 559 242 31 172 1303 921 251 102 1356 1073 1599 1135 2458 1449 1836 316 384 634 256 1330 7718 9381 Influence Increases 45938 | 10 590 235 358 1761 150 360 . 402 631 952 358 44 163 852 452 . 1487 1209 459 48 1080 2108 1237 1837 2569 1937 429 1607 936 861 1700 834 3701 9555 5026 Destroy 0b10 Robot/C 23240 | . 300 160 100 360 120 280 . 260 240 500 160 . 60 460 160 . 560 540 160 . 480 960 380 800 800 1000 120 840 340 280 440 320 1940 6460 3660 Destroy 0b10 Robot/NC 1645 | 10 70 . 15 95 . 20 . 10 70 25 10 20 10 5 30 . 85 5 40 . 60 40 90 . 135 . 20 35 40 60 75 5 115 315 135 Destroy Leader 3506 | . 80 . . 142 30 60 . 10 100 44 . . 22 30 58 . 98 40 32 . 144 30 106 60 168 50 30 90 76 38 100 122 198 996 552 Allied During Kill 1215 | . . . 1 . . . . 62 7 282 162 5 . . . . . 9 . . . 249 . 156 24 181 8 69 . . . . . . . Trap Triggered on 0b10 150 | . . . . . . . . . . . . . . . . . . . . . . . 20 . 10 . . . 40 . 50 . 30 . . Successful Hack 1773 | . 17 . 26 128 . . . . 78 29 . . 15 24 92 . 105 16 14 . 168 . 68 12 198 22 70 16 128 40 241 138 92 36 . Select Force Hacks 330 | . 60 . 150 50 . . . . . . . . 50 . . . 20 . . . . . . . . . . . . . . . . . . Disable Machine 2835 | . 60 . . 150 . . . . 15 30 15 . . 15 . . 210 45 105 . 90 75 210 75 435 45 15 60 . 225 105 150 390 240 75 Anti-Garrison Action 2250 | . . . . 400 . . . . . . . . . 200 . . . 250 . . . 400 . 400 . 350 . 250 . . . . . . . Destroy Structure 6569 | . 3 . 36 126 . . . . 16 12 11 4 6 118 52 . 334 214 108 48 138 309 258 304 504 259 106 217 192 88 574 99 771 1223 439 Advance Influence 250 | . . . . 250 . . . . . . . . . . . . . . . . . . . . . . . . . . . . . . . Partial Spotted 315 | . . . . 15 . . . . 15 . . . . . . . 15 15 . . . . . . 60 . 15 . 45 30 . . 90 . 15 Lose Combat Pursuer 1560 | . . 75 30 45 . . . 60 90 30 . 15 . . 60 . 60 75 . . . 45 105 30 135 30 45 30 75 . 15 . 75 285 150 Miscellaneous 300 | . . . . . . . . . . . . . . . . . . . . . . . . . 100 . . . . 100 100 . . . . Influence Decreases 34781 | 5 495 254 434 931 800 518 27 402 511 684 602 173 135 13 1190 134 775 287 1145 853 1074 78 2451 403 2983 699 2337 458 2998 761 1149 1570 851 2698 3903 Entered New Map 15042 | . 2 48 43 3 310 36 27 . . 62 172 87 11 13 420 94 3 217 781 623 46 48 1041 293 1145 599 1537 398 1083 181 224 466 144 1272 3613 Time Decay 10402 | 5 483 196 371 718 490 482 . 382 389 422 170 86 124 . 440 40 345 . 214 230 575 . 410 . 478 . 270 . 565 270 310 644 697 446 150 Lost Part 580 | . 10 10 20 60 . . . . 10 10 . . . . 20 . 40 30 . . . 10 . 10 30 10 10 . 30 10 30 . 10 80 140 Lost Ally 853 | . . . . . . . . 20 30 40 260 . . . 10 . . 40 . . 3 20 . 100 80 90 20 60 70 . . 10 . . . Purge Threat 7904 | . . . . 150 . . . . 82 150 . . . . 300 . 387 . 150 . 450 . 1000 . 1250 . 500 . 1250 300 585 450 . 900 . Squads Dispatched 269 | . 6 . . 20 . . . . 11 . . . 6 . 4 . 6 . 5 . 11 . 12 . 18 . 7 . 11 4 10 2 22 76 38 Investigation 60 | . 4 . . 7 . . . . 2 . . . 6 . . . 4 . 2 . 4 . 4 . 4 . 1 . 10 1 4 2 2 3 . Extermination 38 | . . . . 7 . . . . 4 . . . . . 2 . 1 . 1 . 4 . 2 . 3 . 2 . . 1 4 . 5 2 . Reinforcement 36 | . 2 . . 2 . . . . 4 . . . . . 2 . 1 . 2 . 3 . 5 . 4 . 2 . 1 1 1 . . 4 2 Assault 127 | . . . . 4 . . . . . . . . . . . . . . . . . . 1 . 1 . 2 . . 1 . . 15 67 36 Garrison 8 | . . . . . . . . . 1 . . . . . . . . . . . . . . . 6 . . . . . 1 . . . . Intercept . | . . . . . . . . . . . . . . . . . . . . . . . . . . . . . . . . . . . . Searches Triggered . | . . . . . . . . . . . . . . . . . . . . . . . . . . . . . . . . . . . . Unchained Authorized 3 | . . . . . . . . . . . . . . . . . . . . . . . . . . . 1 . . 1 . . . 1 . Data Miner Redirects 4 | . . . . . . . . . . . . . . . . . . . . . . . . . . . . . . . 1 . 1 2 . Construction Impeded 8 | . . . . . . . . . . . . . . . 1 . 1 . . . 2 . . . 2 . 1 . . . . . . 1 . Haulers Reinforced 9 | . . . . . . . . . 1 . . . . . . . . . 2 . 1 . 3 . 1 . . . . . 1 . . . . Active Scanning Responses . | . . . . . . . . . . . . . . . . . . . . . . . . . . . . . . . . . . . . Cargo Convoy Interrupts 3 | . . . . . . . . . 1 . . . . . . . 1 . . . . . . . 1 . . . . . . . . . . Alert ID Control Effect 7 | . . . . . . . . . . . . . . . . . . . . . . . . . . . . 6 1 . . . . . . Stealth | -11 -10 -10 -9 -7 -7 -7 -7 -6 -6 -6 -6 -6 -6 -6 -5 -5 -5 -5 -4 -4 -4 -4 -4 -4 -4 -4 -4 -4 -3 -3 -2 -2 -2 -1 -1 --------- Run | Yrd Mat Sub Rec Fac Low Low Dat Pro Fac Ext Cet Arc Hub Gar Fac Was Fac Gar Fac Was Fac Gar Fac Gar Fac Gar Fac Gar Res Tes Res Qua Frg Acc Com Distress Signals 31 | . 2 . . . . . . . 1 2 1 . . . . . 1 . . . 1 . 6 . 4 . . . 2 1 1 1 1 6 1 Communications Jammed 33 | . . . . . . . . . . . . . . . . . . . . . 4 . 9 . . . . . . . 3 . 17 . . Distress Signals 33 | . . . . . . . . . . . . . . . . . . . . . 4 . 9 . . . . . . . 3 . 17 . . Times Spotted 1669 | . 23 28 8 33 6 18 . 9 29 24 5 10 9 24 15 6 40 32 16 6 36 53 39 50 82 54 23 39 40 20 30 14 116 469 263 Peak Tracking Total 29 | . 5 3 4 5 4 4 . 7 5 5 5 6 4 4 3 6 15 7 5 3 4 5 6 12 14 8 9 5 6 3 4 5 12 20 29 Tactical Retreats 90 | . . 3 3 2 . . . 1 5 1 . 1 . . 3 . 2 3 . . . 3 4 2 9 1 3 1 4 . 4 . 4 23 8 ECM-based Alert Blocks 35 | . . . . . . . . . . . . . . . . . . . . . . . . . 25 . 1 . 4 . 5 . . . . Traps | -11 -10 -10 -9 -7 -7 -7 -7 -6 -6 -6 -6 -6 -6 -6 -5 -5 -5 -5 -4 -4 -4 -4 -4 -4 -4 -4 -4 -4 -3 -3 -2 -2 -2 -1 -1 ------- Run | Yrd Mat Sub Rec Fac Low Low Dat Pro Fac Ext Cet Arc Hub Gar Fac Was Fac Gar Fac Was Fac Gar Fac Gar Fac Gar Fac Gar Res Tes Res Qua Frg Acc Com Traps Triggered 81 | . 2 . . 3 . . . . 2 2 . . 3 1 2 . 1 . 4 . 1 3 1 7 1 6 2 5 2 4 4 1 14 7 3 Indirectly 2 | . . . . . . . . . . . . . . . . . . . 1 . . 1 . . . . . . . . . . . . . Trap Hack Attempts 2 | . . 2 . . . . . . . . . . . . . . . . . . . . . . . . . . . . . . . . . Triggered . | . . . . . . . . . . . . . . . . . . . . . . . . . . . . . . . . . . . . Disarmed 8 | . . . . . . . . . . . . . . . . . . . . . . . . . 8 . . . . . . . . . . Reprogrammed 24 | . . 1 . 6 . . . . . . . . . . . . . . . . . . 4 . . . . . 7 . 6 . . . . Reused 16 | . . . . . . . . 1 . . . . . . . . . . . . . . 2 . 1 . . . 4 . 5 . 3 . . Traps Extracted . | . . . . . . . . . . . . . . . . . . . . . . . . . . . . . . . . . . . . Installed 9 | . . . . . . . . 1 1 . . . 1 . 1 . . 1 . . . . . . 1 . . . . . . . 3 . . Triggered 16 | . . . . . . . . 1 . . . . . . . . . . . . . . 2 . 1 . . . 4 . 5 . 3 . . Most Traps Carried 8 | . . 1 1 . . . . 8 7 5 5 5 5 4 4 3 3 4 4 4 4 4 4 4 4 3 3 3 3 3 3 3 3 . . Machines | -11 -10 -10 -9 -7 -7 -7 -7 -6 -6 -6 -6 -6 -6 -6 -5 -5 -5 -5 -4 -4 -4 -4 -4 -4 -4 -4 -4 -4 -3 -3 -2 -2 -2 -1 -1 ---------- Run | Yrd Mat Sub Rec Fac Low Low Dat Pro Fac Ext Cet Arc Hub Gar Fac Was Fac Gar Fac Was Fac Gar Fac Gar Fac Gar Fac Gar Res Tes Res Qua Frg Acc Com Machines Disabled 252 | . 4 3 . 10 . . . . 1 2 1 . . 5 . . 14 9 7 . 6 13 14 15 29 8 1 10 . 19 7 10 32 26 6 Max in Single Turn 6 | . 1 2 . 5 . . . . 1 1 1 . . 1 . . 6 2 2 . 1 1 5 2 6 1 1 2 . 3 2 1 3 2 1 Garrison Access 21 | . . . . 2 . . . . 2 . . . . . . . 2 . . . 2 . . . 1 . . . 4 1 1 1 1 4 . Garrison Relay 28 | . . . . . . . . . . . . . . 4 . . . 4 . . . 6 . 5 . 5 . 4 . . . . . . . Phase Generator 3 | . . . . . . . . . . . . . . . . . . 1 . . . . . 1 . . . 1 . . . . . . . Network Hub 2 | . . . . . . . . . . . . . 2 . . . . . . . . . . . . . . . . . . . . . . Energy Cycler 2 | . . . . . . . . . . . . . . . . . . . . . . . . . . . . . . . . . . 2 . Machines Repaired . | . . . . . . . . . . . . . . . . . . . . . . . . . . . . . . . . . . . . Machines Dismantled . | . . . . . . . . . . . . . . . . . . . . . . . . . . . . . . . . . . . . Machines Sabotaged 1 | . . . . . . . . . . . . . 1 . . . . . . . . . . . . . . . . . . . . . . Overloaded Fab Kills 1 | . . . . 1 . . . . . . . . . . . . . . . . . . . . . . . . . . . . . . . Hacking | -11 -10 -10 -9 -7 -7 -7 -7 -6 -6 -6 -6 -6 -6 -6 -5 -5 -5 -5 -4 -4 -4 -4 -4 -4 -4 -4 -4 -4 -3 -3 -2 -2 -2 -1 -1 --------- Run | Yrd Mat Sub Rec Fac Low Low Dat Pro Fac Ext Cet Arc Hub Gar Fac Was Fac Gar Fac Was Fac Gar Fac Gar Fac Gar Fac Gar Res Tes Res Qua Frg Acc Com Machines Accessed 244 | . 9 2 14 26 . 1 4 . 13 4 1 . 7 2 6 . 19 1 4 . 17 3 9 2 19 3 7 3 18 9 16 14 5 6 . Terminals 136 | . 6 . 6 11 . 1 . . 6 4 1 . 6 2 4 . 9 1 2 . 6 3 4 2 12 3 3 3 7 8 9 9 4 4 . Fabricators 29 | . . . . 6 . . . . 3 . . . . . 1 . 3 . 1 . 2 . 3 . 2 . 1 . 4 . 1 . . 2 . Repair Stations 8 | . 1 . . 1 . . . . . . . . . . . . 2 . . . 2 . . . . . . . . . 1 1 . . . Recycling Units 27 | . 2 . 7 4 . . . . 1 . . . . . 1 . 1 . 1 . 3 . 1 . . . 2 . 2 . 2 . . . . Scanalyzers 12 | . . . . 2 . . . . . . . . . . . . 1 . . . 1 . . . 2 . . . 1 . 2 3 . . . Garrison Access 25 | . . . . 2 . . . . 3 . . . 1 . . . 3 . . . 3 . 1 . 3 . 1 . 4 1 1 1 1 . . Total Hacks 921 | . 26 6 37 67 . 2 25 . 29 14 1 . 21 8 37 . 65 4 13 . 61 3 37 4 96 4 29 6 52 29 101 85 19 40 . Successful 477 | . 11 6 27 38 . 2 25 . 15 7 . . 10 3 13 . 33 1 7 . 28 3 20 2 55 3 8 2 28 9 40 36 10 35 . Failed 444 | . 15 . 10 29 . . . . 14 7 1 . 11 5 24 . 32 3 6 . 33 . 17 2 41 1 21 4 24 20 61 49 9 5 . Catastrophic 90 | . 1 . 1 6 . . . . 1 . . . 2 . 2 . 8 . 2 . 12 . 1 . 5 1 11 1 9 6 10 8 2 1 . Database Lockouts . | . . . . . . . . . . . . . . . . . . . . . . . . . . . . . . . . . . . . Manual 360 | . 18 . 25 27 . . . . 8 10 1 . 11 2 20 . 27 1 1 . 23 . 11 . 44 1 18 2 15 1 26 43 5 20 . Terminals 597 | . 17 . 20 33 . 2 . . 13 14 1 . 18 8 28 . 37 4 9 . 28 3 20 4 72 4 19 6 29 28 74 61 17 28 . Fabricators 116 | . . . . 18 . . . . 8 . . . . . 4 . 10 . 2 . 13 . 13 . 8 . 7 . 14 . 7 . . 12 . Repair Stations 21 | . 3 . . 2 . . . . . . . . . . . . 4 . . . 6 . . . . . . . . . 1 5 . . . Recycling Units 55 | . 6 . 15 5 . . . . 2 . . . . . 5 . 3 . 2 . 4 . 3 . . . 2 . 2 . 6 . . . . Scanalyzers 64 | . . . . 6 . . . . . . . . . . . . 8 . . . 5 . . . 13 . . . 2 . 12 18 . . . Garrison Access 35 | . . . . 3 . . . . 6 . . . 3 . . . 3 . . . 5 . 1 . 3 . 1 . 5 1 1 1 2 . . Terminal Hacks 225 | . 2 6 7 14 . 2 25 . 5 7 . . 5 3 7 . 14 1 3 . 7 3 6 2 23 3 1 2 13 7 18 13 6 20 . Record 12 | . . 5 . . . 2 4 . . . . . . . . . . . . . . . . . . . . . . . . . . 1 . Part Schematic 24 | . . . 2 2 . . 13 . . 4 . . . . . . . . . . 1 . . . 1 . . . . . 1 . . . . Robot Schematic 7 | . . . 1 . . . 5 . . . . . . . . . . . . . . . . . . . . . 1 . . . . . . Robot Analysis 12 | . . . . . . . . . . 1 . . . . . . . . . . . . . . . . . . 1 . 3 4 . 3 . Prototype ID Bank 9 | . . . 2 . . . 3 . . . . . . . . . . . . . . . . . 1 . . . . . 1 2 . . . Open Door 2 | . . . . . . . . . 1 . . . . . . . . . . . . . . . . . . . . 1 . . . . . Level Access Points 2 | . . . . . . . . . . . . . . . . . . . . . . . . . . . . . . . 1 . 1 . . Branch Access Points 6 | . . . . . . . . . . . . . . . 1 . 1 . . . . . 1 . . . . . 1 . 1 . . 1 . Emergency Access Points 16 | . . . . 1 . . . . . . . . 1 1 . . 2 . . . 1 1 . 1 2 1 . 1 1 1 . 1 . 1 . Machine Index 5 | . . . . . . . . . . . . . . . . . 1 . . . . . . . . . . . 1 . . . 1 2 . Terminal Index 11 | . . . . 1 . . . . 1 . . . 1 . 1 . 1 . 1 . 1 . . . 1 . . . 1 . 1 . 1 . . Fabricator Index 4 | . . . . . . . . . . . . . . . 1 . . . . . . . 1 . 1 . . . . . 1 . . . . Garrison Index 4 | . . . . . . . . . . . . . . . 1 . . . . . . . . . 1 . . . . . 1 . . 1 . Alert Level 2 | . . . . 2 . . . . . . . . . . . . . . . . . . . . . . . . . . . . . . . Unreport Threat 38 | . . . . 1 . . . . 1 1 . . . . 1 . 3 . 1 . 3 . 2 . 6 . . . 2 3 5 3 . 6 . Locate Traps 16 | . 2 . . 3 . . . . . 1 . . . . . . 2 . 1 . . . . . 2 . . . . 1 . 1 1 2 . Disarm Traps 2 | . . . . . . . . . . . . . . . . . . . . . . . . . 2 . . . . . . . . . . Reprogram Traps 6 | . . . . 1 . . . . . . . . . . . . . . . . . . 1 . . . . . 3 . 1 . . . . Recall Investigation 5 | . . . . . . . . . . . . . 2 . . . . . . . . . . . 2 . . . . . . 1 . . . Recall Extermination 2 | . . . . 1 . . . . . . . . . . . . . . . . . . . . . . . . . . . . . 1 . Recall Assault 1 | . . . . . . . . . . . . . . . . . . . . . . . . . . . . . . . . . . 1 . Hauler Manifests 8 | . . . . 1 . . . . 1 . . . . . 2 . 1 . . . 1 . . . 1 . . . 1 . . . . . . Registered Components 5 | . . . . 1 . . . . 1 . . . . . . . 1 . . . . . . . 1 . . . . . 1 . . . . Registered Prototypes 4 | . . . . . . . . . . . . . . . . . 1 . . . . . . . 1 . . . 1 . . 1 . . . Zone Layout 8 | . . . . . . . . . . . . . 1 . . . 1 . . . . . 1 . 1 . 1 . . . 1 . 1 1 . Garrison Registry 3 | . . . . . . . . . . . . . . 1 . . . 1 . . . . . . . 1 . . . . . . . . . Patrol Navigation 4 | . . . . . . . . . . . . . . 1 . . . . . . . 1 . 1 . 1 . . . . . . . . . Security Stations 2 | . . . . . . . . . . . . . . . . . . . . . . 1 . . . . . 1 . . . . . . . Proto ID Catalog 2 | . . 1 . . . . . . . . . . . . . . . . . . . . . . . . . . . . . . 1 . . Protovariant Controls 1 | . . . . . . . . . . . . . . . . . . . . . . . . . . . . . . 1 . . . . . Release Object 2 | . . . 2 . . . . . . . . . . . . . . . . . . . . . . . . . . . . . . . . Fabricator Hacks 39 | . . . . 7 . . . . 3 . . . . . . . 2 . 2 . 3 . 5 . 3 . 3 . 4 . 2 . . 5 . Network Status 8 | . . . . 1 . . . . 1 . . . . . . . 1 . 1 . . . . . . . 1 . 2 . . . . 1 . Load Schematic 17 | . . . . 3 . . . . 1 . . . . . . . 1 . 1 . 2 . 2 . 1 . 1 . 2 . 1 . . 2 . Build 14 | . . . . 3 . . . . 1 . . . . . . . . . . . 1 . 3 . 2 . 1 . . . 1 . . 2 . Repair Station Hacks 10 | . . . . 2 . . . . . . . . . . . . 1 . . . 4 . . . . . . . . . 1 2 . . . Scan Component 6 | . . . . 1 . . . . . . . . . . . . 1 . . . 2 . . . . . . . . . 1 1 . . . Repair 4 | . . . . 1 . . . . . . . . . . . . . . . . 2 . . . . . . . . . . 1 . . . Recycling Unit Hacks 15 | . 1 . 6 1 . . . . . . . . . . . . . . 1 . 2 . 1 . . . . . 2 . 1 . . . . Retrieve Components 15 | . 1 . 6 1 . . . . . . . . . . . . . . 1 . 2 . 1 . . . . . 2 . 1 . . . . Scanalyzer 31 | . . . . 2 . . . . . . . . . . . . 3 . . . 3 . . . 9 . . . 1 . 7 6 . . . Insert Component 19 | . . . . 2 . . . . . . . . . . . . 2 . . . 1 . . . 3 . . . . . 5 6 . . . Analyze 9 | . . . . . . . . . . . . . . . . . 1 . . . 2 . . . 4 . . . . . 2 . . . . Retrieve Study 3 | . . . . . . . . . . . . . . . . . . . . . . . . . 2 . . . 1 . . . . . . Garrison Access Hacks 26 | . . . . . . . . . 2 . . . 1 . . . 3 . . . 5 . 1 . 3 . 1 . 5 1 1 1 2 . . Unlock Access 8 | . . . . . . . . . . . . . 1 . . . 1 . . . 2 . 1 . 2 . 1 . . . . . . . . Seal Access 15 | . . . . . . . . . 2 . . . . . . . 2 . . . 2 . . . 1 . . . 4 1 1 1 1 . . Coupler Status 3 | . . . . . . . . . . . . . . . . . . . . . 1 . . . . . . . 1 . . . 1 . . Unauthorized Hacks 131 | . 8 . 14 12 . . . . 5 . . . 4 . 6 . 10 . 1 . 4 . 7 . 17 . 3 . 3 1 10 14 2 10 . Terminals 82 | . 6 . 8 4 . . . . 1 . . . 4 . 2 . 6 . . . 2 . 1 . 14 . 3 . 3 1 8 14 2 3 . Track 4 | . . . . . . . . . . . . . . . . . . . . . . . . . . . . . . . 2 1 . 1 . Assimilate 7 | . . . . . . . . . 1 . . . . . . . . . . . 1 . . . 3 . . . . . 1 1 . . . Botnet 45 | . . . 3 3 . . . . . . . . . . 2 . 6 . . . 1 . 1 . 9 . 2 . 3 1 4 6 2 2 . Operators 2 | . . . . 1 . . . . . . . . . . . . . . . . . . . . 1 . . . . . . . . . . Skim 20 | . 6 . 5 . . . . . . . . . . . . . . . . . . . . . 1 . 1 . . . 1 6 . . . Sabotage 4 | . . . . . . . . . . . . . 4 . . . . . . . . . . . . . . . . . . . . . . Fabricators 29 | . . . . 5 . . . . 2 . . . . . 3 . 3 . . . 1 . 5 . 3 . . . . . . . . 7 . Report 5 | . . . . . . . . . 1 . . . . . 1 . 1 . . . . . . . . . . . . . . . . 2 . Prioritize 9 | . . . . 2 . . . . . . . . . . . . . . . . 1 . 3 . 1 . . . . . . . . 2 . Liberate 4 | . . . . . . . . . . . . . . . 1 . . . . . . . . . 1 . . . . . . . . 2 . Haulers 8 | . . . . 1 . . . . 1 . . . . . 1 . 1 . . . . . 2 . 1 . . . . . . . . 1 . Overload 1 | . . . . 1 . . . . . . . . . . . . . . . . . . . . . . . . . . . . . . . Download 1 | . . . . . . . . . . . . . . . . . 1 . . . . . . . . . . . . . . . . . . Recompile 1 | . . . . 1 . . . . . . . . . . . . . . . . . . . . . . . . . . . . . . . Repair Stations . | . . . . . . . . . . . . . . . . . . . . . . . . . . . . . . . . . . . . Recycling Units 17 | . 2 . 6 1 . . . . 1 . . . . . 1 . 1 . 1 . 1 . 1 . . . . . . . 2 . . . . Reject 2 | . . . . . . . . . 1 . . . . . . . 1 . . . . . . . . . . . . . . . . . . Recyclers 7 | . . . . 1 . . . . . . . . . . 1 . . . 1 . 1 . 1 . . . . . . . 2 . . . . Mask 1 | . . . 1 . . . . . . . . . . . . . . . . . . . . . . . . . . . . . . . . Tunnel 7 | . 2 . 5 . . . . . . . . . . . . . . . . . . . . . . . . . . . . . . . . Scanalyzers . | . . . . . . . . . . . . . . . . . . . . . . . . . . . . . . . . . . . . Garrison Access 3 | . . . . 2 . . . . 1 . . . . . . . . . . . . . . . . . . . . . . . . . . Reprogram 1 | . . . . . . . . . 1 . . . . . . . . . . . . . . . . . . . . . . . . . . Jam 2 | . . . . 2 . . . . . . . . . . . . . . . . . . . . . . . . . . . . . . . Data Cores Recovered 4 | . . . . 1 . . . . . . . . . . 1 . . . . . . . . . 1 . . . . . . . . 1 . Used . | . . . . . . . . . . . . . . . . . . . . . . . . . . . . . . . . . . . . Hacking Detections 166 | . 9 . 9 20 . 1 . . 10 4 . . 6 . 6 . 12 1 3 . 10 . 6 1 10 3 5 1 14 5 11 10 3 6 . Full Trace Events 30 | . 3 . . 3 . . . . 1 . . . 1 . . . 2 . . . 2 . 2 . 2 . 1 . 4 . 2 2 2 3 . Feedback Events 4 | . . . . 2 . . . . . . . . . . . . . . . . . . . . 1 . . . 1 . . . . . . Corruption 4 | . . . . 2 . . . . . . . . . . . . . . . . . . . . 1 . . . 1 . . . . . . Feedback Blocked . | . . . . . . . . . . . . . . . . . . . . . . . . . . . . . . . . . . . . Robot Schematics Acquired 12 | . . . 1 . . . 5 . . . . . . . . . . . . . . . . . . . . . 1 . . 3 2 . . Robots Built . | . . . . . . . . . . . . . . . . . . . . . . . . . . . . . . . . . . . . Authchips . | . . . . . . . . . . . . . . . . . . . . . . . . . . . . . . . . . . . . Time 76 | . . . . . . . . . . . . . . . . . . . . . . . . . . . 76 . . . . . . . . Total Robot Build Rating . | . . . . . . . . . . . . . . . . . . . . . . . . . . . . . . . . . . . . Part Schematics Acquired 48 | . . . 2 2 . . 13 . . 4 . . . . . . 2 . . . 1 . . . 4 . . . . 5 3 10 2 . . Parts Built 21 | . . . . 6 . . . . 2 . . . . . . . . . . . 1 . 5 . 3 . . . . . 2 . . 2 . Authchips 1 | . . . . 1 . . . . . . . . . . . . . . . . . . . . . . . . . . . . . . . Time 612 | . . . . 195 . . . . 42 . . . . . . . . . . . 55 . 160 . 69 . . . . . 31 . . 60 . Total Part Build Rating 133 | . . . . 28 . . . . 16 . . . . . . . . . . . 9 . 33 . 19 . . . . . 10 . . 18 . Part Studies Acquired 3 | . . . . . . . . . . . . . . . . . . . . . . . . . 2 . . . 1 . . . . . . Parts Repaired 4 | . . . . 1 . . . . . . . . . . . . . . . . 2 . . . . . . . . . . 1 . . . Time 226 | . . . . 53 . . . . . . . . . . . . . . . . 105 . . . . . . . . . . 68 . . . Parts Recycled . | . . . . . . . . . . . . . . . . . . . . . . . . . . . . . . . . . . . . Recycled Matter . | . . . . . . . . . . . . . . . . . . . . . . . . . . . . . . . . . . . . Retrieved Matter . | . . . . . . . . . . . . . . . . . . . . . . . . . . . . . . . . . . . . Retrieved Components 67 | . 8 . 20 10 . . . . . . . . . . . . . . 3 . 11 . 2 . . . . . 10 . 3 . . . . Parts Scanalyzed 9 | . . . . 2 . . . . . . . . . . . . 1 . . . 1 . . . 3 . . . . . 2 . . . . Part Schematics Acquired 7 | . . . . . . . . . . . . . . . . . 1 . . . 1 . . . 3 . . . . . 2 . . . . Parts Damaged 4 | . . . . 2 . . . . . . . . . . . . 1 . . . . . . . . . . . . . 1 . . . . Bothacking | -11 -10 -10 -9 -7 -7 -7 -7 -6 -6 -6 -6 -6 -6 -6 -5 -5 -5 -5 -4 -4 -4 -4 -4 -4 -4 -4 -4 -4 -3 -3 -2 -2 -2 -1 -1 ------------ Run | Yrd Mat Sub Rec Fac Low Low Dat Pro Fac Ext Cet Arc Hub Gar Fac Was Fac Gar Fac Was Fac Gar Fac Gar Fac Gar Fac Gar Res Tes Res Qua Frg Acc Com Used RIF Installer 8 | . . . . . . . . . . . . . . 1 . . . 2 . . . 1 . 2 . 1 . 1 . . . . . . . Hotswap 1 | . . . . . . . . . . . . . . . . . . . . . . . . 1 . . . . . . . . . . . Zone Cloak 1 | . . . . . . . . . . . . . . . . . . . . . . . . . . . . 1 . . . . . . . Watcher Feeds 1 | . . . . . . . . . . . . . . . . . . . . . . . . . . 1 . . . . . . . . . Patrol Navigation 1 | . . . . . . . . . . . . . . . . . . . . . . . . 1 . . . . . . . . . . . Alert ID Control 1 | . . . . . . . . . . . . . . . . . . 1 . . . . . . . . . . . . . . . . . Program Shield 1 | . . . . . . . . . . . . . . . . . . 1 . . . . . . . . . . . . . . . . . Autoassimilate 1 | . . . . . . . . . . . . . . . . . . . . . . 1 . . . . . . . . . . . . . Robots Hacked 40 | . . . . 1 . . . . . . . . . . 4 3 . 2 1 . . . 5 4 1 3 4 2 7 2 . . . . 1 Non-combat 17 | . . . . 1 . . . . . . . . . . 4 . . . 1 . . . 5 . 1 . 3 . 2 . . . . . . Combat 22 | . . . . . . . . . . . . . . . . 3 . 2 . . . . . 4 . 3 1 2 5 2 . . . . . Autoassimilated 3 | . . . . . . . . . . . . . . . . . . . . . . . . . . . . . 3 . . . . . . Robot Hacks Applied 80 | . . . . 1 . . . . . . . . . . 8 3 . 2 1 . . . 15 5 6 3 9 3 18 6 . . . . . parse_system 4 | . . . . . . . . . . . . . . . 2 . . . . . . . . 1 . . . 1 . . . . . . . generate_echo 1 | . . . . . . . . . . . . . . . 1 . . . . . . . . . . . . . . . . . . . . find_chute 3 | . . . . 1 . . . . . . . . . . 1 . . . 1 . . . . . . . . . . . . . . . . drop_inventory 1 | . . . . . . . . . . . . . . . 1 . . . . . . . . . . . . . . . . . . . . purge_threat 34 | . . . . . . . . . . . . . . . 1 . . . . . . . 9 . 5 . 5 . 14 . . . . . . find_terminals 1 | . . . . . . . . . . . . . . . . . . . . . . . 1 . . . . . . . . . . . . locate_traps 1 | . . . . . . . . . . . . . . . . . . . . . . . 1 . . . . . . . . . . . . disarm_traps 1 | . . . . . . . . . . . . . . . . . . . . . . . 1 . . . . . . . . . . . . block_reporting 4 | . . . . . . . . . . . . . . . 1 . . . . . . . 1 . . . 1 . 1 . . . . . . map_route 2 | . . . . . . . . . . . . . . . . . . . . . . . . . . . 2 . . . . . . . . disable_scanner 2 | . . . . . . . . . . . . . . . . . . . . . . . . . . . . . . 2 . . . . . locate_prototypes 1 | . . . . . . . . . . . . . . . . . . . . . . . . . . . . . . 1 . . . . . report_analyses 3 | . . . . . . . . . . . . . . . . . . . . . . . . . . . . . . 3 . . . . . ignore_targets 3 | . . . . . . . . . . . . . . . . 3 . . . . . . . . . . . . . . . . . . . spike_heat 1 | . . . . . . . . . . . . . . . . . . . . . . . . . . . . . 1 . . . . . . overload_power 1 | . . . . . . . . . . . . . . . . . . . . . . . 1 . . . . . . . . . . . . amplify_resonance 4 | . . . . . . . . . . . . . . . . . . . . . . . 1 1 . 1 . . 1 . . . . . . disable_weapons 1 | . . . . . . . . . . . . . . . . . . . . . . . . 1 . . . . . . . . . . . reboot_system 1 | . . . . . . . . . . . . . . . . . . . . . . . . . . 1 . . . . . . . . . overwrite_iff 1 | . . . . . . . . . . . . . . . . . . . . . . . . . . . . 1 . . . . . . . formatsys_low 1 | . . . . . . . . . . . . . . . . . . . . . . . . . 1 . . . . . . . . . . formatsys_high 9 | . . . . . . . . . . . . . . . 1 . . 2 . . . . . 2 . 1 1 1 1 . . . . . . Manual 1 | . . . . . . . . . . . . . . . . . . . . . . . . . . . . . . . . . . . 1 Relay Couplers Released 119 | . . . . . . . . . 4 . . . . 18 . . . 17 . . . 25 . 17 . 21 . 13 . . . . . 4 . Machine Destruction 115 | . . . . . . . . . . . . . . 18 . . . 17 . . . 25 . 17 . 21 . 13 . . . . . 4 . Programmers 4 | . . . . . . . . . 4 . . . . . . . . . . . . . . . . . . . . . . . . . . Attached 17 | . . . . . . . . . . . . . . . 1 1 . 2 . . . . 3 1 1 1 2 2 2 . . . 1 . . Fabnet Peak Effective % . | . . . . . . . . . . . . . . . . . . . . . . . . . . . . . . . . . . . . Robots Rewired 44 | . . . 7 . . . . 2 1 12 . . . . . . . . . . . 4 . 10 . 7 . . . 1 . . . . . Allies Hacked 1 | . . . . . . . . . . . . . . . 1 . . . . . . . . . . . . . . . . . . . . Hacks Repelled . | . . . . . . . . . . . . . . . . . . . . . . . . . . . . . . . . . . . . Allies | -11 -10 -10 -9 -7 -7 -7 -7 -6 -6 -6 -6 -6 -6 -6 -5 -5 -5 -5 -4 -4 -4 -4 -4 -4 -4 -4 -4 -4 -3 -3 -2 -2 -2 -1 -1 -------- Run | Yrd Mat Sub Rec Fac Low Low Dat Pro Fac Ext Cet Arc Hub Gar Fac Was Fac Gar Fac Was Fac Gar Fac Gar Fac Gar Fac Gar Res Tes Res Qua Frg Acc Com Total Allies 84 | . . . 7 . . . . 3 3 21 5 . . . 1 . . 2 . . 1 4 . 12 3 10 1 5 4 1 . 1 . . . Largest Group 20 | . . . 7 2 . . . 3 2 20 20 11 . . 1 . . 2 . . 1 4 . 8 3 7 1 3 3 1 . 1 . . . Highest-Rated Group 804 | . . . 135 36 . . . 150 61 727 804 770 . . 26 . . 58 . . 26 224 . 204 204 383 116 186 150 150 . 41 . . . Highest-Rated Ally 159 | . . . 34 26 . . . 96 32 159 143 143 . . 26 . . 29 . . 26 56 . 119 68 80 116 142 58 150 . 41 . . . Total Orders 36 | . . . 4 . . . . . . . . 4 . . 2 . . . . . 2 4 . 2 5 5 . 4 3 . . 1 . . . STAY 19 | . . . 1 . . . . . . . . 2 . . 1 . . . . . 1 2 . 1 3 3 . 2 2 . . 1 . . . FOLLOW 16 | . . . 2 . . . . . . . . 2 . . 1 . . . . . 1 2 . 1 2 2 . 2 1 . . . . . . PICKUP 1 | . . . 1 . . . . . . . . . . . . . . . . . . . . . . . . . . . . . . . . Ally Attacks 460 | . . . 10 . . . . 24 9 35 100 . . . . . . 19 . . . 70 . 40 21 82 8 37 5 . . . . . . Total Damage 14238 | . . . 424 . . . . 1033 312 721 1848 . . . . . . 334 . . . 2088 . 1010 1320 2676 363 1925 184 . . . . . . Kills 75 | . . . 1 . . . . 6 1 5 7 . . . . . . 2 . . . 16 . 3 9 14 2 8 1 . . . . . . Allies Corrupted 2 | . . . . 1 . . . . 1 . . . . . . . . . . . . . . . . . . . . . . . . . . Allies Melted 1 | . . . . . . . . . 1 . . . . . . . . . . . . . . . . . . . . . . . . . . Intel | -11 -10 -10 -9 -7 -7 -7 -7 -6 -6 -6 -6 -6 -6 -6 -5 -5 -5 -5 -4 -4 -4 -4 -4 -4 -4 -4 -4 -4 -3 -3 -2 -2 -2 -1 -1 ------- Run | Yrd Mat Sub Rec Fac Low Low Dat Pro Fac Ext Cet Arc Hub Gar Fac Was Fac Gar Fac Was Fac Gar Fac Gar Fac Gar Fac Gar Res Tes Res Qua Frg Acc Com Active Infowar (turns) 35409 | 22 1311 1099 19 2955 938 941 74 1290 1261 1036 344 1077 269 1155 1093 90 1057 1082 453 496 1802 1407 999 302 1048 4 554 8 1698 582 693 2324 2585 3340 1 Optics 20210 | . . . . . . . . . 125 1036 344 1077 269 1155 1093 90 1057 1082 453 496 1802 1407 999 302 . . . . 1577 582 693 2324 23 2224 . Sensors 23275 | . . 1091 19 2897 938 941 74 1290 1136 . . . 250 6 1060 5 861 347 414 496 1381 . 610 . 977 2 554 8 1542 476 678 2182 2169 871 . Terrain 951 | . . . . . . . . . . . . . . . . . . . . . . . . . . . . . 122 . 63 355 411 . . Seismic 1342 | 22 1311 8 . . . . . . . . . . . . . . . . . . . . . . . . . . . . . . . . 1 Machine Analysis 430 | . . . . 430 . . . . . . . . . . . . . . . . . . . . . . . . . . . . . . . Cloaking 2698 | . . . . . . . . . . . . . . . . . . . . . . . . . . . . . . . . . 1580 1118 . Spoofing 2 | . . . . . . . . . . . . . . . . . . . . . . . . . . 2 . . . . . . . . . Jamming 998 | . . . . . . . . . . . . . . . . . . . . . 69 . 105 13 . . . . 1 30 330 28 422 . . ECM 380 | . . . . . . . . . . . . . . . . . . . . . 2 . . . 179 . 124 . 11 . 64 . . . . Robot Analysis Total 11 | . . . . . . . . . . 1 . . . . . . . . . . . . . . . . . . . . 3 4 . 3 . Derelict Logs Recovered 7 | . . 1 . . 2 2 . 2 . . . . . . . . . . . . . . . . . . . . . . . . . . . Drone Launches . | . . . . . . . . . . . . . . . . . . . . . . . . . . . . . . . . . . . . Drone Recoveries . | . . . . . . . . . . . . . . . . . . . . . . . . . . . . . . . . . . . . Exploration | -11 -10 -10 -9 -7 -7 -7 -7 -6 -6 -6 -6 -6 -6 -6 -5 -5 -5 -5 -4 -4 -4 -4 -4 -4 -4 -4 -4 -4 -3 -3 -2 -2 -2 -1 -1 ------------- Run | Yrd Mat Sub Rec Fac Low Low Dat Pro Fac Ext Cet Arc Hub Gar Fac Was Fac Gar Fac Was Fac Gar Fac Gar Fac Gar Fac Gar Res Tes Res Qua Frg Acc Com Turns Passed 57842 | 58 1442 5113 4746 3342 1294 1256 74 1315 1393 1036 344 1077 269 1155 1093 90 1057 1082 453 496 1802 1407 999 1318 1232 1409 583 1119 1698 582 693 2324 3131 8335 3025 Spaces Moved 49536 | 41 1001 3658 2649 2296 1050 1214 84 1395 1482 849 258 168 287 983 924 114 1203 952 408 457 1474 1143 823 1101 1664 1945 906 1304 3140 990 1401 3151 2691 4736 1594 Core 3 | 3 . . . . . . . . . . . . . . . . . . . . . . . . . . . . . . . . . . . Treads 15204 | . 23 105 . 451 . . . . . . . . . 7 . . 1147 952 408 393 1474 1143 823 23 . . . . . . 160 2333 2645 2955 162 Legs 16369 | . . 2515 378 635 1050 1214 84 883 . . . 120 287 939 338 . . . . . . . . . . . . . 1826 990 1241 818 . 1619 1432 Wheels 4521 | 38 978 1038 2271 196 . . . . . . . . . . . . . . . . . . . . . . . . . . . . . . . Hover 3378 | . . . . 1014 . . . 512 784 . . 18 . 37 576 114 56 . . 64 . . . . . . . . . . . . 46 157 . Flight 10061 | . . . . . . . . . 698 849 258 30 . . 10 . . . . . . . . 1078 1664 1945 906 1304 1314 . . . . 5 . Fastest Speed 22 | 50 90 110 90 75 89 89 89 60 60 48 48 48 73 73 63 71 61 61 61 61 86 86 86 46 46 46 46 46 28 28 28 28 22 42 69 Average Speed 79 | 86 107 125 137 101 89 89 89 81 66 51 48 86 73 84 81 71 61 61 61 67 86 86 86 79 46 46 46 46 37 28 28 53 39 125 108 Slowest Speed 240 | 90 240 240 205 197 89 89 89 89 68 68 48 192 73 157 100 71 71 61 61 86 86 86 86 86 46 46 46 46 125 28 28 125 125 223 205 Overloaded Moves 22 | . . . . . . . . . . . . . . . . . . . . . . . . . . . . . 22 . . . . . . Propulsion Burnouts . | . . . . . . . . . . . . . . . . . . . . . . . . . . . . . . . . . . . . Robots Hopped 25 | . . . . . . . . . . 3 . . . . 1 . . . . . . . . . 9 . 8 1 3 . . . . . . Potential Cave-ins 27 | . . 2 . 2 . . . . . . . . . . . . . . . . . . . . . . . . 3 . 8 . 2 6 4 Cave-ins Triggered 2 | . . . . . . . . . . . . . . . . . . . . . . . . . . . . . . . . . . . 2 Teleports 1 | . . . . . . . . . . . . . . . . . . . . . . . . . . . . . . . . . 1 . . Exploration Rate (%) 70 | 3 97 99 99 66 94 98 70 98 35 85 85 82 31 71 30 94 39 94 21 82 42 98 35 95 47 96 36 99 91 95 53 97 44 92 49 Regions Visited 35 Branch Regions 14 Pre-discovered Areas 16 | . 2 2 6 . 1 1 1 2 . . . . . . . . . . . . . . . . . . . . . . . 1 . . . Known Exits Taken 21 | . . . . 1 1 1 1 1 1 1 1 1 1 . . . 1 . . . 1 . 1 . 1 . 1 . 1 1 1 1 1 1 . Unknown Exits Taken 4 | 1 1 1 1 . . . . . . . . . . . . . . . . . . . . . . . . . . . . . . . . Scrap Searched 22 | . . 12 . . 7 2 . 1 . . . . . . . . . . . . . . . . . . . . . . . . . . . Spaces Dug 729 | . . 2 . 51 12 2 . . 15 . . 4 2 7 20 . 43 33 9 . 29 2 90 7 66 3 15 22 54 16 88 20 24 56 37 Terrain Destroyed 3209 | . . 43 31 144 19 56 . 13 15 . . 4 6 23 25 . 205 150 58 25 77 34 157 126 279 94 61 178 103 49 212 35 180 478 329 Melee 248 | . . . . 42 10 1 . . 15 . . 4 . 7 18 . 10 1 2 . 19 2 7 . 22 1 15 8 11 4 27 5 6 11 . Projectile 1213 | . . 35 11 15 2 1 . . . . . . 6 16 7 . 18 34 23 25 47 32 51 56 72 36 . . 43 40 114 17 147 303 62 AOE 1748 | . . 8 20 87 7 54 . 13 . . . . . . . . 177 115 33 . 11 . 99 70 185 57 46 170 49 5 71 13 27 164 267 Terrain Rammed . | . . . . . . . . . . . . . . . . . . . . . . . . . . . . . . . . . . . . Walls Destroyed . | . . . . . . . . . . . . . . . . . . . . . . . . . . . . . . . . . . . . Machines Disabled . | . . . . . . . . . . . . . . . . . . . . . . . . . . . . . . . . . . . . Actions | -11 -10 -10 -9 -7 -7 -7 -7 -6 -6 -6 -6 -6 -6 -6 -5 -5 -5 -5 -4 -4 -4 -4 -4 -4 -4 -4 -4 -4 -3 -3 -2 -2 -2 -1 -1 --------- Run | Yrd Mat Sub Rec Fac Low Low Dat Pro Fac Ext Cet Arc Hub Gar Fac Was Fac Gar Fac Was Fac Gar Fac Gar Fac Gar Fac Gar Res Tes Res Qua Frg Acc Com Total 64146 | 54 1209 4013 3735 3043 1365 1325 83 1557 1769 1402 456 1029 331 1183 1156 121 1433 1327 542 583 1859 1372 1012 1396 1971 2298 1007 1640 3500 1205 1578 3714 4464 6663 2751 Wait 8657 | . 70 162 930 436 251 51 . 112 114 420 161 789 20 47 141 2 100 225 45 53 191 53 42 69 126 99 28 110 112 50 52 434 1316 1134 712 Move 49458 | 40 1000 3657 2648 2295 1049 1213 83 1394 1481 842 257 167 286 982 922 113 1203 951 408 456 1474 1142 823 1100 1645 1944 892 1300 3134 989 1400 3150 2690 4735 1593 Hop 22 | . . . . . . . . . . 3 . . . . 1 . . . . . . . . . 9 . 6 1 2 . . . . . . Pick Up 389 | 4 11 24 32 31 6 1 . 4 22 3 6 2 1 14 5 . 12 11 . 5 9 6 4 9 14 13 4 15 21 8 4 11 40 31 6 Fast Attach 248 | 7 7 11 3 18 3 1 . 2 13 4 . . 1 13 2 . 10 4 9 . 10 1 4 2 9 6 2 4 18 15 6 10 21 21 11 Attach 163 | . 1 3 5 17 3 . . 1 4 . . . 1 1 3 . 7 3 1 . . 2 3 7 5 4 6 7 10 6 5 7 17 17 17 Detach 93 | . 1 3 2 13 1 . . 1 4 . . . 1 2 1 . 7 1 1 . 1 . 1 4 2 1 3 5 4 5 1 4 7 8 9 Swap 576 | . 37 15 8 9 19 13 . 6 15 2 6 8 5 5 9 3 23 26 7 . 36 10 24 13 36 10 11 14 21 8 8 14 58 75 22 Drop 473 | . 11 30 32 21 6 4 . 4 31 5 6 8 1 18 3 . 10 10 6 4 18 6 6 7 15 17 6 13 33 24 5 15 46 39 13 Fire 2877 | 3 71 93 20 92 16 22 . 14 22 37 15 26 13 59 20 3 42 73 63 65 91 73 93 111 75 111 25 99 93 86 60 56 216 578 341 Melee 779 | . . . 1 97 11 20 . 2 56 1 5 29 . 41 48 . 18 22 2 . 25 68 12 11 31 26 23 52 51 9 36 13 49 20 . Ram . | . . . . . . . . . . . . . . . . . . . . . . . . . . . . . . . . . . . . Kick 5 | . . . . . . . . . . . . . 1 . . . . . . . . . . . . . . . . 4 . . . . . Crush 5 | . . . . . . . . . . . . . . . . . 1 . . . 4 . . . . . . . . . . . . . . Escape Stasis 89 | . . . . 13 . . . . . 4 . . . . . . . . . . . . . . . 19 . 20 1 . . . . 5 27 Rewire 281 | . . 1 54 . . . . 16 6 81 . . . . . . . . . . . 11 . 63 . 48 . . . 1 . . . . . Trap 11 | . . 2 . . . . . 1 1 . . . 1 . 1 . . 1 . . . . . . 1 . . . . . . . 3 . . Miscellaneous 20 | . . 12 . 1 . . . . . . . . . 1 . . . . . . . . . . 3 . 1 . . . 1 . 1 . . Route ------- -11/Scrapyard -10/Materials (discovered 6 exits: [*Mat x3] / [*Min x2] / *Sub) -10/Subcaves (discovered 3 exits: [*Mat x2] / *Rec) -9/Recycling -7/Factory (discovered 6 exits: *Fac x4 / *Low x2) -7/Lower Caves -7/Lower Caves (discovered 2 exits: *Fac / *Dat) -7/Data Miner -6/Proximity Caves -6/Factory (discovered 4 exits: Fac / *Low / *Ext x2) -6/Extension (discovered 2 exits: *Fac / *Cet) -6/Cetus (discovered 2 exits: *Fac / *Arc) -6/Archives (discovered 3 exits: *Fac / *Hub x2) -6/Hub_04(d) (discovered 2 exits: *Fac / Gar) -6/Garrison (discovered 3 exits: *Fac x3) -5/Factory (discovered 2 exits: *Upp x2) -5/Waste -5/Factory (discovered 3 exits: *Upp x2 / Gar) -5/Garrison (discovered 3 exits: *Fac x3) -4/Factory -4/Waste -4/Factory (discovered 4 exits: *Res / *Upp x2 / Gar) -4/Garrison (discovered 3 exits: *Fac x3) -4/Factory (discovered 2 exits: Upp / Gar) -4/Garrison (discovered 4 exits: *Res x3 / *Fac) -4/Factory (discovered 4 exits: *Upp x2 / Gar / Gar) -4/Garrison (discovered 4 exits: *Res x3 / *Fac) -4/Factory (discovered 3 exits: *Res / *Upp / Gar) -4/Garrison (discovered 3 exits: *Res x3) -3/Research (discovered 6 exits: *Res x3 / *Arm / *Tes x2) -3/Testing -2/Research (discovered 5 exits: *Acc x3 / *Qua x2) -2/Quarantine (discovered 3 exits: *Acc / *Sec / *Frg) -2/Protoforge -1/Access -1/Command History --------- Turn | Location | Event 21 | -11/Scrapyard | Discovered new exit (range 15) 59 | -11/Scrapyard | Entered Materials 276 | -10/Materials | Discovered new exit (range 8) 309 | -10/Materials | Build established: Mutant 435 | -10/Materials | Discovered new exit (range 10) 469 | -10/Materials | Discovered new exit (range 3) 547 | -10/Materials | Discovered new exit (range 3) 806 | -10/Materials | Discovered new exit (range 15) 818 | -10/Materials | Discovered new exit (range 12) 1501 | -10/Materials | Entered Subcaves 1591 | -10/Subcaves | Shifting Twisted Machinery released Sub. Monowheel 2128 | -10/Subcaves | Ambushed by Subdweller buried in earth 2188 | -10/Subcaves | Build established: Scavenger-Mutant 2312 | -10/Subcaves | Learned location of Zion (-6) 2312 | -10/Subcaves | Met a Zionite searching for "candidates" 2403 | -10/Subcaves | Ambushed by Subdweller buried in earth 2562 | -10/Subcaves | Discovered new exit (range 7) 3007 | -10/Subcaves | Learned Materials garrison access intel 3087 | -10/Subcaves | Build established: Subdweller-Mutant 3209 | -10/Subcaves | Visited 4L-MR0's lab 3555 | -10/Subcaves | Discovered new exit (range 12) 3639 | -10/Subcaves | Shifting Twisted Machinery released Sub. Laser 4084 | -10/Subcaves | Discovered new exit (range 10) 4428 | -10/Subcaves | Visited Clippyterm 4431 | -10/Subcaves | Learned location of Section 7 (-2) 4431 | -10/Subcaves | Learned 40 Factory zone layouts 4484 | -10/Subcaves | Shifting Twisted Machinery released Battle Cannon 4486 | -10/Subcaves | Shifting Twisted Machinery released Flamer 4789 | -10/Subcaves | A Subdweller sparked back to life 4789 | -10/Subcaves | A Subdweller sparked back to life 4819 | -10/Subcaves | Found Gun Armor 5513 | -10/Subcaves | Build established: Mutant 5603 | -10/Subcaves | Found Meta Core 5834 | -10/Subcaves | Core integrity fell below 50% 6614 | -10/Subcaves | Entered Recycling 7169 | -9/Recycling | Discovered new exit (range 5) 7481 | -9/Recycling | Learned Storage stockpile data 7549 | -9/Recycling | Learned Storage stockpile data 7552 | -9/Recycling | Learned location of 2 exits from Materials 7559 | -9/Recycling | Learned 2 Materials zone layouts 7576 | -9/Recycling | Learned Storage trap positions 8219 | -9/Recycling | Build established: Commander-Mutant 8260 | -9/Recycling | Scanned before Scraplab entrance 10132 | -9/Recycling | Angered Scraplab inhabitants 10183 | -9/Recycling | Core integrity fell below 20% 10198 | -9/Recycling | Lost 5 allies 10288 | -9/Recycling | Found Prototype Device 10288 | -9/Recycling | Identified Scrap Engine 10668 | -9/Recycling | Build established: Construct 11360 | -9/Recycling | Entered Factory 11360 | -7/Factory | Accompanied by 2 allies 11360 | -7/Factory | Evolved 6 slots: Propulsion x2, Utility x3, Weapon x1 11361 | -7/Factory | Identified exit to Factory 11361 | -7/Factory | Identified exit to Lower Caves 11859 | -7/Factory | Fabricated Imp. Antigrav System? 12564 | -7/Factory | Lost 3 parts (1n1u1w) 12823 | -7/Factory | Build established: Mutant 13000 | -7/Factory | System corruption reached 10% 13200 | -7/Factory | Fabricated Flak Cannon (x2) 13360 | -7/Factory | First assault squad dispatched 13366 | -7/Factory | Build established: Construct 13560 | -7/Factory | Repaired Broken Cryofiber Web? 13663 | -7/Factory | Attached Meta Core, gained temporary slots: Propulsion, Utility, Weapon 14181 | -7/Factory | Fabricated System Restoration Module? 14702 | -7/Factory | Entered Lower Caves 15148 | -7/Lower Caves | Spotted B-75 Beast 15160 | -7/Lower Caves | Core integrity fell below 50% 15164 | -7/Lower Caves | Destroyed B-75 Beast 15875 | -7/Lower Caves | Learned 4 Factory zone layouts 15881 | -7/Lower Caves | Discovered new exit (range 6) 15885 | -7/Lower Caves | Identified exit to Lower Caves 15996 | -7/Lower Caves | Entered another Lower Caves area 16056 | -7/Lower Caves | Ambushed by wild Derelicts 16327 | -7/Lower Caves | Discovered exit to Factory (range 5) 16481 | -7/Lower Caves | Encountered a Warlord checkpoint 16652 | -7/Lower Caves | Discovered new exit (range 12) 16660 | -7/Lower Caves | Identified exit to Data Miner 16984 | -7/Lower Caves | Attracted the attention of an 0b10 checkpoint 17034 | -7/Lower Caves | Spotted B-75 Beast 17053 | -7/Lower Caves | Destroyed B-75 Beast 17064 | -7/Lower Caves | Learned Factory terminal intel 17252 | -7/Lower Caves | Entered Data Miner 17252 | -7/Data Miner | Discovered new exit (range 6) 17269 | -7/Data Miner | Met Data Miner 17285 | -7/Data Miner | Acquired the access code to Warlord's prototype stash 17301 | -7/Data Miner | Received God Mode back door access code from Data Miner 17325 | -7/Data Miner | Identified exit to Proximity Caves 17326 | -7/Data Miner | Entered Proximity Caves 17505 | -6/Proximity Caves | Escorted by Enhanced Grunt 17899 | -6/Proximity Caves | Build established: Trapper-Construct 17932 | -6/Proximity Caves | Attracted the attention of an 0b10 checkpoint 18005 | -6/Proximity Caves | Discovered exit to Factory (range 8) 18641 | -6/Proximity Caves | Entered Factory 18641 | -6/Factory | Accompanied by 1 ally 18641 | -6/Factory | Evolved 2 slots: Utility x2 18642 | -6/Factory | Identified exit to Factory 18643 | -6/Factory | Loaded intel: 28 terminal locations 18660 | -6/Factory | Watched by a mysterious "MATRIX" hacker. 18768 | -6/Factory | Discovered new exit (range 7) 18774 | -6/Factory | Identified exit to Lower Caves 18959 | -6/Factory | Discovered new exit (range 6) 19587 | -6/Factory | Fabricated Linear Accelerator (x2) 19727 | -6/Factory | Discovered new exit (range 16) 19870 | -6/Factory | Garrison activated, responded to threat 19876 | -6/Factory | Cargo convoy interrupted 19893 | -6/Factory | Found Prototype Launcher 19893 | -6/Factory | Identified Adv. Micro-nuke Launcher 19909 | -6/Factory | Found Prototype Processor 19909 | -6/Factory | Identified Spectral Analyzer 19970 | -6/Factory | Found PL-3XN's Ring of Power 20002 | -6/Factory | Identified exit to Extension 20034 | -6/Factory | Entered Extension 20034 | -6/Extension | Accompanied by 1 ally 20123 | -6/Extension | Build established: Hacker-Construct 20165 | -6/Extension | Rescued a captive Derelict 20171 | -6/Extension | Rescued a captive Derelict 20183 | -6/Extension | Rescued A7 20319 | -6/Extension | Rescued a captive Derelict 20327 | -6/Extension | Spotted B-75 Beast 20335 | -6/Extension | Rescued a captive Derelict 20548 | -6/Extension | Build established: Commander-Construct 20659 | -6/Extension | Spotted B-75 Beast 20665 | -6/Extension | Destroyed B-75 Beast 20677 | -6/Extension | Destroyed B-75 Beast 20695 | -6/Extension | Rescued a captive Derelict 20707 | -6/Extension | Rescued a captive Derelict 20799 | -6/Extension | Rescued a captive Derelict 20799 | -6/Extension | Rescued a captive Derelict 20952 | -6/Extension | Discovered exit to Factory (range 10) 20953 | -6/Extension | Discovered new exit (range 6) 20958 | -6/Extension | Identified exit to Cetus 21070 | -6/Extension | Entered Cetus 21070 | -6/Cetus | Accompanied by 20 allies (A7) 21075 | -6/Cetus | Acquired a Cetus Manufacturing Module code from A7 21077 | -6/Cetus | Spotted Cetus Guard 21077 | -6/Cetus | Spotted Cetus Guard 21077 | -6/Cetus | Spotted Cetus Guard 21077 | -6/Cetus | Spotted Cetus Guard 21121 | -6/Cetus | Allies destroyed Cetus Guard 21122 | -6/Cetus | Destroyed Cetus Guard 21123 | -6/Cetus | Allies destroyed Cetus Guard 21124 | -6/Cetus | Destroyed Cetus Guard 21153 | -6/Cetus | Lost 11 allies 21190 | -6/Cetus | Escorted A7 to Cetus Mainframe 21195 | -6/Cetus | Started Cetus Manufacturing Module 21197 | -6/Cetus | Discovered new exit (range 23) 21220 | -6/Cetus | Manufactured an Enhanced Grunt 21239 | -6/Cetus | Spotted Cetus Guard 21239 | -6/Cetus | Spotted Cetus Guard 21239 | -6/Cetus | Spotted Cetus Guard 21239 | -6/Cetus | Spotted Cetus Guard 21245 | -6/Cetus | Manufactured an Enhanced Grunt 21250 | -6/Cetus | Allies destroyed Cetus Guard 21258 | -6/Cetus | Allies destroyed Cetus Guard 21266 | -6/Cetus | Allies destroyed Cetus Guard 21270 | -6/Cetus | Manufactured an Enhanced Grunt 21274 | -6/Cetus | Allies destroyed Cetus Guard 21282 | -6/Cetus | Discovered exit to Factory (range 24) 21289 | -6/Cetus | Met Revision 17 21295 | -6/Cetus | Manufactured an Enhanced Grunt 21320 | -6/Cetus | Manufactured an Enhanced Grunt 21332 | -6/Cetus | Identified exit to Archives 21414 | -6/Cetus | Entered Archives 21414 | -6/Archives | Accompanied by 11 allies (A7) 21419 | -6/Archives | Received a hacking code to weaken MAIN.C 21964 | -6/Archives | Murdered 3 allies 22354 | -6/Archives | Murdered 3 allies 22428 | -6/Archives | Met Zhirov 22428 | -6/Archives | Discovered new exit (range 22) 22434 | -6/Archives | Reinforcements dispatched to Archives 22443 | -6/Archives | Discovered new exit (range 24) 22448 | -6/Archives | Read partially decrypted archive contents 22454 | -6/Archives | Discovered exit to Factory (range 23) 22479 | -6/Archives | Reinforcements dispatched to Archives 22481 | -6/Archives | Zhirov warped through subspace 22490 | -6/Archives | Identified exit to Hub_04(d) 22491 | -6/Archives | Entered Hub_04(d) 22515 | -6/Hub_04(d) | Discovered exit to Factory (range 14) 22571 | -6/Hub_04(d) | Build established: Construct 22571 | -6/Hub_04(d) | Identified exit to Garrison 22688 | -6/Hub_04(d) | Network Hub disabled 22694 | -6/Hub_04(d) | Network Hub disabled 22705 | -6/Hub_04(d) | Spotted Lightning 22708 | -6/Hub_04(d) | Spotted Lightning 22711 | -6/Hub_04(d) | Spotted Lightning 22760 | -6/Hub_04(d) | Entered Garrison 22838 | -6/Garrison | Triggered checkpoint 22894 | -6/Garrison | Garrison Relay disabled 23077 | -6/Garrison | Triggered checkpoint 23163 | -6/Garrison | Discovered exit to Factory (range 29) 23163 | -6/Garrison | Discovered exit to Factory (range 73) 23163 | -6/Garrison | Discovered exit to Factory (range 45) 23340 | -6/Garrison | Triggered checkpoint 23392 | -6/Garrison | Spotted B-86 Titan 23403 | -6/Garrison | Installed Relay Interface Framework 23447 | -6/Garrison | Garrison Relay disabled 23471 | -6/Garrison | Build established: Hacker-Construct 23496 | -6/Garrison | Garrison Relay disabled 23608 | -6/Garrison | Garrison Relay disabled 23915 | -6/Garrison | Entered Factory 23915 | -5/Factory | Evolved 2 slots: Propulsion x1, Utility x1 24121 | -5/Factory | Discovered new exit (range 23) 24213 | -5/Factory | Build established: Hacker-Assassin 24880 | -5/Factory | Identified exit to Upper Caves 24987 | -5/Factory | Build established: Hacker-Construct 25008 | -5/Factory | Sucked down chute 25008 | -5/Factory | Entered Waste 25017 | -5/Waste | Spotted C-40 Crusher 25017 | -5/Waste | Spotted C-40 Crusher 25021 | -5/Waste | Spotted C-40 Crusher 25023 | -5/Waste | EMP discharged 25030 | -5/Waste | Spotted C-40 Crusher 25033 | -5/Waste | Spotted C-40 Crusher 25041 | -5/Waste | Spotted C-40 Crusher 25070 | -5/Waste | Discovered new exit (range 11) 25098 | -5/Waste | Identified exit to Factory 25098 | -5/Waste | Entered Factory 25136 | -5/Factory | Discovered exit to Upper Caves (range 21) 25405 | -5/Factory | Build established: Construct 25713 | -5/Factory | Targeted by mysterious "MATRIX" hacker. 25996 | -5/Factory | Build established: Hacker-Construct 26005 | -5/Factory | Cargo convoy interrupted 26044 | -5/Factory | Destroyed 14 combat bots 26055 | -5/Factory | Found Prototype Device 26055 | -5/Factory | Identified Exp. EM Shield 26060 | -5/Factory | Found Prototype Device 26060 | -5/Factory | Identified Exp. Shock Absorption System 26079 | -5/Factory | Found Prototype Device 26079 | -5/Factory | Identified Thermal Barrier 26155 | -5/Factory | Identified exit to Garrison 26155 | -5/Factory | Entered Garrison 26171 | -5/Garrison | Phase Generator disabled 26259 | -5/Garrison | Destroyed 7 combat bots 26262 | -5/Garrison | Expanded RIF knowledge: Alert ID Control 26294 | -5/Garrison | Discovered new exit (range 57) 26294 | -5/Garrison | Discovered new exit (range 75) 26294 | -5/Garrison | Discovered new exit (range 61) 26297 | -5/Garrison | Garrison Relay disabled 26344 | -5/Garrison | Spotted B-75 Beast 26369 | -5/Garrison | Build established: Construct 26418 | -5/Garrison | Destroyed B-75 Beast 26442 | -5/Garrison | Triggered checkpoint 26463 | -5/Garrison | Triggered checkpoint 26507 | -5/Garrison | Garrison Relay disabled 26514 | -5/Garrison | Destroyed 9 combat bots 26617 | -5/Garrison | Triggered checkpoint 26617 | -5/Garrison | Spotted B-75 Beast 26645 | -5/Garrison | Triggered checkpoint 26694 | -5/Garrison | Allies destroyed B-75 Beast 26763 | -5/Garrison | Garrison Relay disabled 26786 | -5/Garrison | Identified exit to Factory 26863 | -5/Garrison | Triggered checkpoint 27028 | -5/Garrison | Expanded RIF knowledge: Program Shield 27033 | -5/Garrison | Triggered checkpoint 27054 | -5/Garrison | Garrison Relay disabled 27237 | -5/Garrison | Entered Factory 27237 | -4/Factory | Evolved 2 slots: Power x1, Weapon x1 27285 | -4/Factory | Discovered new exit (range 5) 27288 | -4/Factory | Identified exit to Upper Caves 27349 | -4/Factory | Build established: Bothacker-Construct 27648 | -4/Factory | Spotted B-86 Titan 27690 | -4/Factory | Sucked down chute 27690 | -4/Factory | Entered Waste 27711 | -4/Waste | Spotted C-40 Crusher 27711 | -4/Waste | Spotted C-40 Crusher 27711 | -4/Waste | Spotted C-40 Crusher 27725 | -4/Waste | Destroyed C-40 Crusher 27747 | -4/Waste | Destroyed C-40 Crusher 27751 | -4/Waste | Destroyed C-40 Crusher 27754 | -4/Waste | Spotted C-40 Crusher 27774 | -4/Waste | Destroyed C-40 Crusher 27780 | -4/Waste | Spotted C-40 Crusher 27892 | -4/Waste | Spotted C-40 Crusher 27920 | -4/Waste | Discovered new exit (range 13) 27932 | -4/Waste | Destroyed C-40 Crusher 27934 | -4/Waste | Destroyed C-40 Crusher 27983 | -4/Waste | Found Prototype Reactor 28184 | -4/Waste | Identified exit to Factory 28186 | -4/Waste | Entered Factory 28258 | -4/Factory | Identified Zero-point Reactor 28360 | -4/Factory | Repaired Broken Adv. Phase Shifter? 28557 | -4/Factory | Repaired Centrium Medium Armor Plating 28820 | -4/Factory | Discovered exit to Upper Caves (range 5) 28828 | -4/Factory | Found Prototype Launcher 28828 | -4/Factory | Identified Com. Tesla Bomb Launcher 28986 | -4/Factory | Spotted B-86 Titan 29002 | -4/Factory | Identified exit to Garrison 29068 | -4/Factory | Fabricated Zero-point Reactor (x1) 29380 | -4/Factory | Discovered exit to Upper Caves (range 21) 29464 | -4/Factory | Found Prototype Device 29464 | -4/Factory | Identified Exp. ECM Suite 29710 | -4/Factory | Discovered new exit (range 23) 29988 | -4/Factory | Identified exit to Garrison 29988 | -4/Factory | Entered Garrison 30015 | -4/Garrison | Expanded RIF knowledge: Autoassimilate 30026 | -4/Garrison | Triggered checkpoint 30052 | -4/Garrison | Triggered checkpoint 30084 | -4/Garrison | Garrison Relay disabled 30220 | -4/Garrison | Spotted B-86 Titan 30239 | -4/Garrison | Destroyed B-86 Titan 30252 | -4/Garrison | Triggered checkpoint 30310 | -4/Garrison | Triggered checkpoint 30333 | -4/Garrison | Garrison Relay disabled 30415 | -4/Garrison | Discovered new exit (range 16) 30427 | -4/Garrison | Identified exit to Factory 30553 | -4/Garrison | Discovered exit to Factory (range 16) 30666 | -4/Garrison | Triggered checkpoint 30666 | -4/Garrison | Garrison Relay disabled 30709 | -4/Garrison | Garrison Relay disabled 30722 | -4/Garrison | Learned Factory security intel 30792 | -4/Garrison | Triggered checkpoint 30806 | -4/Garrison | Triggered checkpoint 30844 | -4/Garrison | Triggered checkpoint 30933 | -4/Garrison | Found Relay Coupler [Proto] 30953 | -4/Garrison | Garrison Relay disabled 30954 | -4/Garrison | Triggered checkpoint 30988 | -4/Garrison | Discovered exit to Factory (range 11) 31064 | -4/Garrison | Triggered checkpoint 31204 | -4/Garrison | Garrison Relay disabled 31395 | -4/Garrison | Entered Factory 31541 | -4/Factory | Spotted B-86 Titan 31689 | -4/Factory | Found Prototype Processor 31885 | -4/Factory | Fabricated Cld. Q-thruster (x1) 31895 | -4/Factory | First assault squad dispatched 31951 | -4/Factory | Destroyed 7 combat bots 32057 | -4/Factory | Fabricated Hvy. Flak Cannon? 32078 | -4/Factory | Fabricated Adv. VSS Leg (x2) 32131 | -4/Factory | Identified Exp. Melee Analysis Suite 32199 | -4/Factory | Spotted B-86 Titan 32393 | -4/Factory | Identified exit to Garrison 32394 | -4/Factory | Entered Garrison 32398 | -4/Garrison | Triggered checkpoint 32475 | -4/Garrison | Triggered checkpoint 32497 | -4/Garrison | Garrison Relay disabled 32566 | -4/Garrison | Triggered checkpoint 32689 | -4/Garrison | Spotted B-86 Titan 32696 | -4/Garrison | Triggered checkpoint 32698 | -4/Garrison | Destroyed B-86 Titan 32701 | -4/Garrison | Triggered checkpoint 32707 | -4/Garrison | Triggered checkpoint 32766 | -4/Garrison | Destroyed 16 combat bots 32767 | -4/Garrison | Lost 8 allies 32804 | -4/Garrison | Triggered checkpoint 32807 | -4/Garrison | Garrison Relay disabled 32854 | -4/Garrison | Discovered new exit (range 9) 32861 | -4/Garrison | Identified exit to Research 32947 | -4/Garrison | Garrison Relay disabled 33066 | -4/Garrison | Expanded RIF knowledge: Patrol Navigation 33098 | -4/Garrison | Expanded RIF knowledge: Hotswap 33107 | -4/Garrison | Discovered exit to Research (range 3) 33128 | -4/Garrison | Triggered checkpoint 33143 | -4/Garrison | Garrison Relay disabled 33221 | -4/Garrison | Triggered checkpoint 33289 | -4/Garrison | Garrison Relay disabled 33306 | -4/Garrison | Phase Generator disabled 33361 | -4/Garrison | Discovered exit to Research (range 11) 33366 | -4/Garrison | Spotted Striker 33396 | -4/Garrison | Destroyed Striker 33400 | -4/Garrison | Rewired Executioner 33520 | -4/Garrison | Triggered checkpoint 33554 | -4/Garrison | Triggered checkpoint 33567 | -4/Garrison | Discovered new exit (range 3) 33569 | -4/Garrison | Identified exit to Factory 33712 | -4/Garrison | Entered Factory 33712 | -4/Factory | Accompanied by 3 allies 33814 | -4/Factory | Discovered exit to Upper Caves (range 9) 33890 | -4/Factory | Discovered exit to Upper Caves (range 7) 33933 | -4/Factory | Garrison activated, responded to threat 33962 | -4/Factory | First assault squad dispatched 34210 | -4/Factory | Fabricated Imp. System Restoration Module (x2) 34229 | -4/Factory | Build established: Construct 34570 | -4/Factory | Cargo convoy interrupted 34607 | -4/Factory | Fabricated Hvy. Shield Leg? 34673 | -4/Factory | Destroyed 8 combat bots 34689 | -4/Factory | Identified exit to Garrison 34696 | -4/Factory | Garrison activated, responded to threat 34783 | -4/Factory | Found Prototype Hackware 34943 | -4/Factory | Identified exit to Garrison 34944 | -4/Factory | Entered Garrison 34944 | -4/Garrison | Accompanied by 1 ally 34948 | -4/Garrison | Triggered checkpoint 35176 | -4/Garrison | Triggered checkpoint 35198 | -4/Garrison | P-70 Sage assimilated allied Virus 7d 35242 | -4/Garrison | Destroyed 10 combat bots 35318 | -4/Garrison | Triggered checkpoint 35388 | -4/Garrison | Triggered checkpoint 35397 | -4/Garrison | Core integrity fell below 50% 35459 | -4/Garrison | Garrison Relay disabled 35474 | -4/Garrison | Discovered exit to Research (range 14) 35526 | -4/Garrison | Triggered checkpoint 35591 | -4/Garrison | Discovered exit to Research (range 11) 35592 | -4/Garrison | Triggered checkpoint 35598 | -4/Garrison | Triggered checkpoint 35608 | -4/Garrison | Garrison Relay disabled 35614 | -4/Garrison | Found embedded Infiltrators 35690 | -4/Garrison | Triggered checkpoint 35769 | -4/Garrison | Build established: Botlord-Construct 35837 | -4/Garrison | Garrison Relay disabled 35840 | -4/Garrison | Discovered exit to Research (range 23) 35840 | -4/Garrison | Discovered exit to Research (range 44) 35840 | -4/Garrison | Discovered exit to Research (range 61) 35840 | -4/Garrison | Discovered new exit (range 73) 35880 | -4/Garrison | Triggered checkpoint 35883 | -4/Garrison | Expanded RIF knowledge: Watcher Feeds 35932 | -4/Garrison | Garrison Relay disabled 35977 | -4/Garrison | Spotted Striker 35977 | -4/Garrison | Spotted Striker 36026 | -4/Garrison | Triggered checkpoint 36118 | -4/Garrison | Identified exit to Factory 36264 | -4/Garrison | Triggered checkpoint 36353 | -4/Garrison | Entered Factory 36380 | -4/Factory | Discovered exit to Upper Caves (range 7) 36458 | -4/Factory | Unchained authorized (DW-4LL) 36479 | -4/Factory | Discovered exit to Research (range 8) 36603 | -4/Factory | First assault squad dispatched 36633 | -4/Factory | Identified Exp. System Shield 36713 | -4/Factory | Spotted B-86 Titan 36714 | -4/Factory | Assimilated Titan 7a with formatsys_high 36781 | -4/Factory | DW-4LL burst out of a wall 36936 | -4/Factory | Identified exit to Garrison 36936 | -4/Factory | Entered Garrison 36956 | -4/Garrison | Triggered checkpoint 36971 | -4/Garrison | Found embedded Infiltrators 37004 | -4/Garrison | Garrison Relay disabled 37046 | -4/Garrison | Phase Generator disabled 37057 | -4/Garrison | Heavy support dispatched to Research 37104 | -4/Garrison | Triggered checkpoint 37115 | -4/Garrison | Spotted B-86 Titan 37146 | -4/Garrison | Destroyed 7 combat bots 37159 | -4/Garrison | Lost 3 allies 37309 | -4/Garrison | Destroyed B-86 Titan 37313 | -4/Garrison | Heavy support dispatched to Research 37318 | -4/Garrison | Triggered checkpoint 37343 | -4/Garrison | Discovered exit to Research (range 14) 37349 | -4/Garrison | Destroyed 10 combat bots 37419 | -4/Garrison | Garrison Relay disabled 37543 | -4/Garrison | Heavy support dispatched to Research 37595 | -4/Garrison | Expanded RIF knowledge: Zone Cloak 37628 | -4/Garrison | Triggered checkpoint 37639 | -4/Garrison | Garrison Relay disabled 37649 | -4/Garrison | Destroyed 7 combat bots 37650 | -4/Garrison | Discovered exit to Research (range 14) 37690 | -4/Garrison | Triggered checkpoint 37718 | -4/Garrison | Discovered exit to Research (range 12) 37722 | -4/Garrison | Rescued a captive Derelict 37772 | -4/Garrison | Learned Research security intel 37774 | -4/Garrison | Triggered checkpoint 37787 | -4/Garrison | Garrison Relay disabled 37793 | -4/Garrison | Heavy support dispatched to Research 37961 | -4/Garrison | H-XX Assembler disabled 38055 | -4/Garrison | Entered Research 38055 | -3/Research | Evolved 2 slots: Utility x1, Weapon x1 38094 | -3/Research | Found Quantum Capacitor 38122 | -3/Research | Identified exit to Armory 38122 | -3/Research | Identified exit to Testing 38148 | -3/Research | Found Fusion Bomb Launcher 38218 | -3/Research | Spotted B-86 Titan 38255 | -3/Research | Revision forces began assault on 0b10 38651 | -3/Research | Discovered new exit (range 5) 38653 | -3/Research | Identified exit to Research 38676 | -3/Research | Found Prototype Device 38676 | -3/Research | Identified Exp. Thermal Defense Suite 38726 | -3/Research | Found Prototype Device 38727 | -3/Research | Identified Exp. Shield Generator 38752 | -3/Research | Found Prototype Device 38752 | -3/Research | Identified System Purifier 38755 | -3/Research | Research terminal network offline 38867 | -3/Research | Build established: Construct 39227 | -3/Research | Spotted Striker 39307 | -3/Research | Discovered exit to Research (range 13) 39430 | -3/Research | Spotted Executioner 39518 | -3/Research | Discovered exit to Research (range 18) 39638 | -3/Research | Found Exp. Core Analyzer 39644 | -3/Research | Found Adv. Kinecellerator 39691 | -3/Research | Spotted Striker 39713 | -3/Research | Destroyed Striker 39753 | -3/Research | Entered Testing 39758 | -3/Testing | Found Prototype Energy Gun 39758 | -3/Testing | Identified Tachyon Dispersion Ray 39781 | -3/Testing | Found Prototype Energy Cannon 39781 | -3/Testing | Identified Potential Cannon 39837 | -3/Testing | Found Prototype Protection 39839 | -3/Testing | Found Prototype Protection 39839 | -3/Testing | Identified Med. Regenerative Plating 39845 | -3/Testing | Found Prototype Protection 39918 | -3/Testing | Unchained authorized (DW-4LL) 39934 | -3/Testing | Destroyed 7 combat bots 39941 | -3/Testing | Found Prototype Energy Gun 39941 | -3/Testing | Identified Hyp. EM Gauss Rifle 40017 | -3/Testing | Found Prototype Energy Cannon 40017 | -3/Testing | Identified Hpw. Disruptor Cannon 40051 | -3/Testing | Spotted Striker 40070 | -3/Testing | Found Prototype Launcher 40070 | -3/Testing | Identified Hellfire Missile Launcher 40124 | -3/Testing | DW-4LL burst out of a wall 40155 | -3/Testing | Destroyed DW-4LL 40161 | -3/Testing | Found Prototype Processor 40167 | -3/Testing | Found Prototype Protection 40190 | -3/Testing | Discovered exit to Research (range 10) 40208 | -3/Testing | Rewired PY-R9OSOIJQEM 40233 | -3/Testing | Protovariant out of control (PY-R9OSOIJQEM) 40234 | -3/Testing | Found Prototype Hackware 40238 | -3/Testing | Spotted PY-R9OSOIJQEM 40279 | -3/Testing | Found Prototype Hackware 40335 | -3/Testing | Entered Research 40335 | -2/Research | Evolved 2 slots: Utility x2 40335 | -2/Research | Identified System Mapper 40336 | -2/Research | Identified Ghost Barrier 40349 | -2/Research | Discovered new exit (range 16) 40434 | -2/Research | Discovered new exit (range 20) 40438 | -2/Research | Identified exit to Access 40451 | -2/Research | Identified exit to Quarantine 40465 | -2/Research | Spotted B-90 Cyclops 40488 | -2/Research | Garrison activated, responded to threat 40594 | -2/Research | Discovered exit to Quarantine (range 9) 40603 | -2/Research | Destroyed 12 combat bots 40649 | -2/Research | Build established: Hacker-Construct 40756 | -2/Research | Identified Hvy. Regenerative Plating 40802 | -2/Research | Incoming investigation squad redirected 40810 | -2/Research | Fabricated Imp. System Restoration Module (x2) 40828 | -2/Research | Spotted B-90 Cyclops 40836 | -2/Research | Spotted B-90 Cyclops 41028 | -2/Research | Entered Quarantine 41189 | -2/Quarantine | Cryocooling Duct disabled 41191 | -2/Quarantine | Cryocooling Duct disabled 41204 | -2/Quarantine | Ambient heat levels rising (+20) 41204 | -2/Quarantine | Non-combat units ordered to evacuate 41206 | -2/Quarantine | Ambient heat levels rising (+20) 41206 | -2/Quarantine | Combat units ordered to evacuate 41306 | -2/Quarantine | Quarantine Guard activated 41372 | -2/Quarantine | Spotted Quarantine Guard 41414 | -2/Quarantine | Destroyed Quarantine Guard 41420 | -2/Quarantine | Spotted Quarantine Guard 41423 | -2/Quarantine | Destroyed Quarantine Guard 41470 | -2/Quarantine | Spotted Quarantine Guard 41495 | -2/Quarantine | Destroyed Quarantine Guard 41508 | -2/Quarantine | Learned location of 1 exit from Section 7 41553 | -2/Quarantine | Learned Research security intel 41586 | -2/Quarantine | Learned 4 Section 7 zone layouts 41611 | -2/Quarantine | Learned Research emergency access door positions 41632 | -2/Quarantine | Spotted Quarantine Guard 41649 | -2/Quarantine | Destroyed Quarantine Guard 41692 | -2/Quarantine | Learned Section 7 security intel 41730 | -2/Quarantine | Spotted Quarantine Guard 41760 | -2/Quarantine | Destroyed Quarantine Guard 41777 | -2/Quarantine | Repaired Adv. Force Field? 41808 | -2/Quarantine | Spotted Quarantine Guard 41813 | -2/Quarantine | Spotted Quarantine Guard 41816 | -2/Quarantine | Destroyed Quarantine Guard 41849 | -2/Quarantine | Spotted Quarantine Guard 41860 | -2/Quarantine | Destroyed Quarantine Guard 41905 | -2/Quarantine | Destroyed Quarantine Guard 41960 | -2/Quarantine | Spotted Quarantine Guard 41985 | -2/Quarantine | Destroyed Quarantine Guard 42016 | -2/Quarantine | Spotted Quarantine Guard 42021 | -2/Quarantine | Destroyed Quarantine Guard 42119 | -2/Quarantine | Found Alien Artifact 42128 | -2/Quarantine | Found Alien Artifact 42338 | -2/Quarantine | Identified Transdimensional Reconstructor 42338 | -2/Quarantine | Identified Dimensional Node Initializer 42566 | -2/Quarantine | Found Alien Artifact 42569 | -2/Quarantine | Found Alien Artifact 42570 | -2/Quarantine | Found Alien Artifact 42594 | -2/Quarantine | Found Alien Artifact 42616 | -2/Quarantine | Found Alien Artifact 42633 | -2/Quarantine | Identified Hpw. Transdimensional Reconstructor (x3) 42633 | -2/Quarantine | Identified Terrabomb 42700 | -2/Quarantine | Identified Phase Redirector 42707 | -2/Quarantine | Found Alien Artifact 42712 | -2/Quarantine | Identified Phase Armor 43023 | -2/Quarantine | Spotted Fortress 43083 | -2/Quarantine | Destroyed Fortress 43095 | -2/Quarantine | Found Prototype Device 43095 | -2/Quarantine | Identified Exp. Force Field 43156 | -2/Quarantine | Discovered new exit (range 13) 43284 | -2/Quarantine | Spotted Quarantine Guard 43284 | -2/Quarantine | Destroyed Quarantine Guard 43284 | -2/Quarantine | Spotted Quarantine Guard 43286 | -2/Quarantine | Destroyed Quarantine Guard 43304 | -2/Quarantine | Discovered new exit (range 8) 43305 | -2/Quarantine | Identified exit to Protoforge 43306 | -2/Quarantine | Identified exit to Section 7 43352 | -2/Quarantine | Entered Protoforge 43406 | -2/Protoforge | Build established: Construct 43659 | -2/Protoforge | Superfortress began startup sequence 43851 | -2/Protoforge | Found Prototype Device 43853 | -2/Protoforge | Found Cep. Antimissile System 44102 | -2/Protoforge | First assault squad dispatched 44129 | -2/Protoforge | Incoming assault squad redirected 44143 | -2/Protoforge | Spotted Immortal 44149 | -2/Protoforge | Spotted Immortal 44157 | -2/Protoforge | Destroyed Immortal 44159 | -2/Protoforge | Destroyed Immortal 44169 | -2/Protoforge | Spotted Decapitator 44169 | -2/Protoforge | Spotted Decapitator 44169 | -2/Protoforge | Spotted Decapitator 44171 | -2/Protoforge | Destroyed Decapitator 44171 | -2/Protoforge | Destroyed Decapitator 44206 | -2/Protoforge | Destroyed Decapitator 44230 | -2/Protoforge | Found Prototype Device 44230 | -2/Protoforge | Identified Exp. Cloaking Device 44237 | -2/Protoforge | Found Prototype Piercing Weapon 44237 | -2/Protoforge | Identified Exp. Jetlance 44313 | -2/Protoforge | Identified Crosscalibrator 44381 | -2/Protoforge | Destroyed 7 combat bots 44401 | -2/Protoforge | Forge Plexus network access discovered 44504 | -2/Protoforge | Found Cep. Antigrav Storage Unit 44508 | -2/Protoforge | Found Cep. NT7 Matterbank 44510 | -2/Protoforge | Found Cep. Chromion Battery 44518 | -2/Protoforge | Found Cep. Matter Streamer 44627 | -2/Protoforge | Initialized slip node 44631 | -2/Protoforge | Found Cep. Countertargeting System 44633 | -2/Protoforge | Found Cep. Weapon Articulator 44646 | -2/Protoforge | Spotted V973-r 44646 | -2/Protoforge | Spotted V183-d 44646 | -2/Protoforge | Spotted Decapitator 44653 | -2/Protoforge | Found Cep. Phase Shift Module 44661 | -2/Protoforge | Found Cep. Beam Splitter 44669 | -2/Protoforge | Found Faulty Cep. Energy Mantle 44674 | -2/Protoforge | Found Faulty Cep. Energy Mantle 44675 | -2/Protoforge | Found Faulty Cep. Phase Shift Module 44678 | -2/Protoforge | Found Faulty Cep. Reaction Jets 44680 | -2/Protoforge | Found Faulty Cep. Reaction Jets 44702 | -2/Protoforge | Spotted V963-t 44702 | -2/Protoforge | Spotted V690-t 44720 | -2/Protoforge | Spotted V388-q 44755 | -2/Protoforge | Spotted Decapitator 44755 | -2/Protoforge | Spotted Decapitator 44887 | -2/Protoforge | Found Cep. Network Penetrator 44890 | -2/Protoforge | Found Cep. Network Penetrator 44996 | -2/Protoforge | Spotted Decapitator 44996 | -2/Protoforge | Destroyed Decapitator 44998 | -2/Protoforge | Destroyed Decapitator 44998 | -2/Protoforge | Destroyed Decapitator 45031 | -2/Protoforge | Spotted V096-o 45034 | -2/Protoforge | Destroyed V096-o 45044 | -2/Protoforge | Found Prototype Device 45044 | -2/Protoforge | Identified Exp. Weapon Cycler 45088 | -2/Protoforge | Spotted V702-k 45088 | -2/Protoforge | Spotted V930-n 45090 | -2/Protoforge | Spotted Immortal 45097 | -2/Protoforge | Spotted V792-x 45102 | -2/Protoforge | Found Cep. Rapid Grenade Launcher 45178 | -2/Protoforge | Destroyed AP7-3 45187 | -2/Protoforge | Destroyed AP7-3 45218 | -2/Protoforge | Found Prototype Processor 45218 | -2/Protoforge | Identified Exp. Target Analyzer 45233 | -2/Protoforge | Found Faulty Cep. Thermoelectric Network 45234 | -2/Protoforge | Found Faulty Cep. Thermoelectric Network 45256 | -2/Protoforge | Found Faulty Cep. Cloak Mesh 45258 | -2/Protoforge | Found Faulty Cep. Cloak Mesh 45433 | -2/Protoforge | Found Cep. Dimensional Manipulator 45456 | -2/Protoforge | System corruption reached 10% 45466 | -2/Protoforge | Found Cep. Deflector Sword 45965 | -2/Protoforge | Warped through subspace to slip node 45969 | -2/Protoforge | Found Prototype Device 45972 | -2/Protoforge | Identified Exp. Kinecellerator 46064 | -2/Protoforge | Found Cep. NT7 Matterbank 46202 | -2/Protoforge | Destroyed 31 combat bots 46278 | -2/Protoforge | Destroyed 12 combat bots 46290 | -2/Protoforge | High security lockdown imminent 46290 | -2/Protoforge | Destroyed Superfortress 46295 | -2/Protoforge | Spotted Striker 46301 | -2/Protoforge | Destroyed Striker 46324 | -2/Protoforge | Found Exp. System Purifier 46326 | -2/Protoforge | Found Exp. System Purifier 46370 | -2/Protoforge | High security lockdown engaged 46375 | -2/Protoforge | Spotted Hotshot 46409 | -2/Protoforge | Spotted Hotshot 46483 | -2/Protoforge | Entered Access 46483 | -1/Access | Evolved 2 slots: Power x1, Utility x1 46496 | -1/Access | Destroyed 8 combat bots 46543 | -1/Access | Fabricated Zero-point Reactor (x1) 46702 | -1/Access | Identified exit to Command 46733 | -1/Access | First assault squad dispatched 46773 | -1/Access | Build established: Wizard-Construct 46810 | -1/Access | Fabricated Hvy. Shield Leg (x1) 47281 | -1/Access | Unchained authorized (GL-D0S) 47286 | -1/Access | Destroyed 7 combat bots 47499 | -1/Access | Incoming assault squad redirected 47511 | -1/Access | Incoming assault squad redirected 47593 | -1/Access | High security lockdown imminent 47673 | -1/Access | High security lockdown engaged 47712 | -1/Access | Destroyed 26 combat bots 47806 | -1/Access | Spotted Executioner 47806 | -1/Access | Spotted Striker 47812 | -1/Access | Destroyed Executioner 47822 | -1/Access | Destroyed Striker 47849 | -1/Access | Found Prototype Processor 47910 | -1/Access | Destroyed 14 combat bots 47996 | -1/Access | Spotted Executioner 48000 | -1/Access | Destroyed Executioner 48009 | -1/Access | Spotted Executioner 48012 | -1/Access | Destroyed Executioner 48017 | -1/Access | Found Exp. Core Analyzer 48083 | -1/Access | Spotted Executioner 48088 | -1/Access | Destroyed Executioner 48118 | -1/Access | Destroyed 27 combat bots 48167 | -1/Access | Spotted Striker 48167 | -1/Access | Spotted Executioner 48172 | -1/Access | Destroyed Executioner 48181 | -1/Access | Destroyed Striker 48184 | -1/Access | Spotted Investigator 48187 | -1/Access | Destroyed Investigator 48187 | -1/Access | Spotted Executioner 48193 | -1/Access | Spotted Executioner 48218 | -1/Access | Destroyed Executioner 48231 | -1/Access | Destroyed Executioner 48249 | -1/Access | Spotted Striker 48249 | -1/Access | Spotted Executioner 48252 | -1/Access | Spotted Executioner 48272 | -1/Access | Destroyed Striker 48274 | -1/Access | Destroyed Executioner 48278 | -1/Access | Destroyed Executioner 48288 | -1/Access | Identified Exp. Targeting Computer 48303 | -1/Access | Destroyed 47 combat bots 48311 | -1/Access | Found Adv. Kinecellerator 48367 | -1/Access | Build established: Gunner 48410 | -1/Access | Destroyed GL-D0S 48414 | -1/Access | Found Spectral Analyzer 48431 | -1/Access | Spotted Striker 48432 | -1/Access | Destroyed Striker 48494 | -1/Access | Spotted Executioner 48501 | -1/Access | Destroyed Executioner 48546 | -1/Access | Destroyed 11 combat bots 48901 | -1/Access | Spotted Executioner 48903 | -1/Access | Spotted Executioner 48904 | -1/Access | Destroyed Executioner 48907 | -1/Access | Destroyed Executioner 48925 | -1/Access | Destroyed Executioner 48950 | -1/Access | Destroyed 15 combat bots 48970 | -1/Access | Destroyed Executioner 48971 | -1/Access | Spotted Striker 48979 | -1/Access | Destroyed Striker 49110 | -1/Access | Spotted Executioner 49115 | -1/Access | Destroyed Executioner 49116 | -1/Access | Destroyed Striker 49148 | -1/Access | Destroyed 9 combat bots 49172 | -1/Access | Destroyed Executioner 49179 | -1/Access | Spotted Investigator 49197 | -1/Access | Build established: Construct 49202 | -1/Access | Destroyed Executioner 49211 | -1/Access | Spotted Executioner 49213 | -1/Access | Scanned by Researcher 49215 | -1/Access | Spotted Executioner 49215 | -1/Access | Spotted Striker 49219 | -1/Access | System corruption reached 10% 49239 | -1/Access | Spotted Striker 49242 | -1/Access | Spotted Striker 49242 | -1/Access | Spotted Executioner 49242 | -1/Access | Spotted Striker 49251 | -1/Access | Destroyed Striker 49251 | -1/Access | Destroyed Striker 49256 | -1/Access | Destroyed Striker 49259 | -1/Access | Destroyed Striker 49261 | -1/Access | Destroyed Investigator 49262 | -1/Access | Destroyed Executioner 49265 | -1/Access | Spotted Investigator 49273 | -1/Access | Spotted Investigator 49285 | -1/Access | Destroyed Investigator 49291 | -1/Access | Destroyed Investigator 49292 | -1/Access | Sterilization system engaged 49293 | -1/Access | Destroyed Executioner 49295 | -1/Access | Destroyed Executioner 49311 | -1/Access | Spotted Striker 49326 | -1/Access | Spotted Striker 49342 | -1/Access | Destroyed Striker 49348 | -1/Access | Spotted Executioner 49361 | -1/Access | Destroyed Executioner 49364 | -1/Access | Destroyed Striker 49387 | -1/Access | Destroyed Executioner 49393 | -1/Access | Spotted Striker 49394 | -1/Access | Destroyed Striker 49402 | -1/Access | Spotted Executioner 49404 | -1/Access | Spotted Executioner 49415 | -1/Access | Destroyed Executioner 49440 | -1/Access | Destroyed Executioner 49478 | -1/Access | Spotted Executioner 49478 | -1/Access | Spotted Executioner 49481 | -1/Access | Destroyed Executioner 49487 | -1/Access | Destroyed Executioner 49519 | -1/Access | Destroyed 110 combat bots 49592 | -1/Access | Ambient heat levels rising (+10) 49742 | -1/Access | Ambient heat levels rising (+10) 49765 | -1/Access | Build established: Gunner 49822 | -1/Access | Spotted Striker 49830 | -1/Access | Destroyed Striker 49892 | -1/Access | Ambient heat levels rising (+10) 50042 | -1/Access | Ambient heat levels rising (+10) 50192 | -1/Access | Ambient heat levels rising (+10) 50220 | -1/Access | Spotted B-99 Colossus 50226 | -1/Access | Destroyed B-99 Colossus 50256 | -1/Access | Destroyed 8 combat bots 50325 | -1/Access | Build established: Tank 50342 | -1/Access | Ambient heat levels rising (+10) 50355 | -1/Access | Spotted B-99 Colossus 50374 | -1/Access | Destroyed B-99 Colossus 50394 | -1/Access | Spotted B-99 Colossus 50400 | -1/Access | Destroyed B-99 Colossus 50492 | -1/Access | Ambient heat levels rising (+10) 50642 | -1/Access | Ambient heat levels rising (+10) 50664 | -1/Access | Found Fusion Bomb Launcher+ 50667 | -1/Access | Found Fusion Bomb Launcher+ 50756 | -1/Access | Build established: Construct 50792 | -1/Access | Ambient heat levels rising (+10) 50859 | -1/Access | Spotted B-99 Colossus 50859 | -1/Access | Spotted B-99 Colossus 50924 | -1/Access | Destroyed B-99 Colossus 50942 | -1/Access | Ambient heat levels rising (+10) 50947 | -1/Access | Destroyed B-99 Colossus 51092 | -1/Access | Ambient heat levels rising (+10) 51242 | -1/Access | Ambient heat levels rising (+10) 51392 | -1/Access | Ambient heat levels rising (+10) 51542 | -1/Access | Ambient heat levels rising (+10) 51623 | -1/Access | Found Prototype Launcher 51623 | -1/Access | Identified Containment Facilitator 51692 | -1/Access | Ambient heat levels rising (+10) 51698 | -1/Access | Found Exp. Core Analyzer 51703 | -1/Access | Found Adv. Kinecellerator 51842 | -1/Access | Ambient heat levels rising (+10) 51867 | -1/Access | Found Quantum Capacitor 51992 | -1/Access | Ambient heat levels rising (+10) 52142 | -1/Access | Ambient heat levels rising (+10) 52292 | -1/Access | Ambient heat levels rising (+10) 52442 | -1/Access | Ambient heat levels rising (+10) 52491 | -1/Access | Energy Cycler disabled 52592 | -1/Access | Ambient heat levels rising (+10) 52742 | -1/Access | Ambient heat levels rising (+10) 52892 | -1/Access | Ambient heat levels rising (+10) 53042 | -1/Access | Ambient heat levels rising (+10) 53192 | -1/Access | Ambient heat levels rising (+10) 53342 | -1/Access | Ambient heat levels rising (+10) 53492 | -1/Access | Ambient heat levels rising (+10) 53642 | -1/Access | Ambient heat levels rising (+10) 53792 | -1/Access | Ambient heat levels rising (+10) 53942 | -1/Access | Ambient heat levels rising (+10) 54092 | -1/Access | Ambient heat levels rising (+10) 54242 | -1/Access | Ambient heat levels rising (+10) 54392 | -1/Access | Ambient heat levels rising (+10) 54542 | -1/Access | Ambient heat levels rising (+10) 54692 | -1/Access | Ambient heat levels rising (+10) 54818 | -1/Access | Entered Command 55068 | -1/Command | First assault squad dispatched 55125 | -1/Command | High security lockdown imminent 55205 | -1/Command | High security lockdown engaged 55244 | -1/Command | Destroyed 11 combat bots 55387 | -1/Command | Destroyed 16 combat bots 55669 | -1/Command | Destroyed 11 combat bots 55685 | -1/Command | Spotted Executioner 55686 | -1/Command | Destroyed Investigator 55688 | -1/Command | Spotted Executioner 55728 | -1/Command | Destroyed 9 combat bots 55731 | -1/Command | Destroyed Executioner 55765 | -1/Command | Destroyed Executioner 55802 | -1/Command | Spotted Executioner 55802 | -1/Command | Spotted Striker 55802 | -1/Command | Spotted Executioner 55805 | -1/Command | Destroyed Executioner 55807 | -1/Command | Spotted Striker 55807 | -1/Command | Spotted Striker 55807 | -1/Command | Spotted Striker 55810 | -1/Command | Spotted Striker 55817 | -1/Command | Spotted Executioner 55817 | -1/Command | Spotted Executioner 55817 | -1/Command | Spotted Striker 55819 | -1/Command | Destroyed Striker 55823 | -1/Command | Destroyed Striker 55825 | -1/Command | Crushed by falling debris 55837 | -1/Command | Destroyed Striker 55837 | -1/Command | Destroyed Striker 55839 | -1/Command | Spotted Executioner 55839 | -1/Command | Spotted Executioner 55840 | -1/Command | Destroyed Executioner 55841 | -1/Command | Destroyed Executioner 55843 | -1/Command | Destroyed Striker 55845 | -1/Command | Destroyed Executioner 55849 | -1/Command | Core integrity fell below 50% 55862 | -1/Command | Spotted Striker 55862 | -1/Command | Spotted Striker 55865 | -1/Command | Destroyed Executioner 55865 | -1/Command | Destroyed Executioner 55873 | -1/Command | Destroyed Striker 55881 | -1/Command | Destroyed Striker 55887 | -1/Command | Destroyed Striker 55912 | -1/Command | Spotted Investigator 55915 | -1/Command | Destroyed 58 combat bots 55916 | -1/Command | Destroyed Investigator 55964 | -1/Command | Destroyed 7 combat bots 56037 | -1/Command | Spotted Executioner 56040 | -1/Command | Spotted Striker 56040 | -1/Command | Spotted Striker 56040 | -1/Command | Spotted Striker 56046 | -1/Command | Spotted Striker 56047 | -1/Command | Spotted Striker 56047 | -1/Command | Spotted Executioner 56048 | -1/Command | Spotted Striker 56048 | -1/Command | Destroyed Striker 56050 | -1/Command | Spotted Executioner 56051 | -1/Command | Spotted Executioner 56053 | -1/Command | Destroyed Striker 56054 | -1/Command | Destroyed Striker 56061 | -1/Command | Spotted Striker 56073 | -1/Command | Spotted Executioner 56077 | -1/Command | Destroyed 9 combat bots 56080 | -1/Command | Destroyed Striker 56086 | -1/Command | Destroyed Striker 56088 | -1/Command | Destroyed Striker 56088 | -1/Command | Destroyed Executioner 56088 | -1/Command | Destroyed Striker 56097 | -1/Command | Core integrity fell below 20% 56102 | -1/Command | Destroyed Executioner 56111 | -1/Command | Destroyed Executioner 56127 | -1/Command | Destroyed Executioner 56152 | -1/Command | Found Exp. Targeting Computer 56156 | -1/Command | Lost 8 parts (1p1n2u4w) 56164 | -1/Command | Destroyed 33 combat bots 56642 | -1/Command | Build established: Scavenger-Construct 57188 | -1/Command | Found Thermal Barrier 57509 | -1/Command | Build established: Gunner 57617 | -1/Command | Spotted B-99 Colossus 57639 | -1/Command | Destroyed B-99 Colossus 57654 | -1/Command | Found Unknown Protection 57737 | -1/Command | Spotted Combat Programmer 57759 | -1/Command | Crushed by falling debris 57796 | -1/Command | Identified Hvy. Reflective Plating 57806 | -1/Command | Met MAIN.C 57816 | -1/Command | Hacked MAIN.C using A7's code 57818 | -1/Command | Build established: Scavenger-Gunner 57818 | -1/Command | 0b10 Conduit disabled 57827 | -1/Command | Destroyed MAIN.C Shell 57829 | -1/Command | MAIN.C activated Command garrisons 57834 | -1/Command | Spotted Combat Programmer 57840 | -1/Command | Spotted M Guard 57843 | -1/Command | Destroyed by MAIN.C with Improved Heavy Machine Gun Last Messages --------------- 57834_ Knocked back. 57834_ Discarded Cep. Thermoelectric Network. 57835_ Acquired 21 matter. 57835_ Penetrated by EMDS Slug. 57836_ Slug penetrates MAIN.C. 57836_ MAIN.C knocked back. 57836_ EMDS Slug penetrates Reinforced Barrier. 57837_ MAIN.C reaction time slowed by virus. 57837_ MAIN.C knocked back. 57838_ MAIN.C reaction time slowed by virus. 57838_ EMDS Slug penetrates Reinforced Barrier. 57839_ Overheating: Energy bleed (-164). 57839_ MAIN.C knocked back. 57841_ MAIN.C reaction time slowed by virus. 57841_ EMDS Slug penetrates Reinforced Barrier. 57841_ Penetrated by EMDS Slug. 57843_ Cep. Reaction Jets destroyed. 57843_ Penetrated by EMDS Slug. [Achievement: 150k Club] Map ----- +----------------------------------------------------+ | ?????????????????????????????????????????????????? | | ?????????????????????????????????????????????????? | | ?????????????????????????????????????????????????? | | ?????????????????????????????????????????????????? | | ?????????????????????????????????????????????????? | | ?????????????????????????????????????????????????? | | ?????????????????????????????????????????????????? | | ?????????????????????????????????????????????????? | | ?????????????????????????????????????????????????? | | ?????????????????????????????????????????????????? | | ?????????????????????????????????????????????????? | | ?????????????????????????????????????????????????? | | ?????????????????????????????????????????????????# | | ?????????????????????????????????????????????????# | | ?????????????????????????????????????????????????# | | ?????????????????????????????????????????????????# | | ?????????????????????????????????????????????????# | | ?????????????????????????????????????????????????# | | ?????????????????????????????????????????????????# | | ??????????????########???????????????????????????# | | ????????????"""" ??????????????????????????# | | ????????????"" ?????????????????????????# | | ????????????"" #######################??# | | ????????????"" + #??# | | ????????????"" + #??# | | ???????????" ;@ #### | | ???????????"" [M! #;;;###############"" # " | | ???????????"" ]%! #####???????????????""#### | | ????????????" !![ ??????????????????????????# | | ???????????" ???????????????????????????? | | ???????????? """"????????????????????????????? | | ???????????? """"""????????????????????????????? | | ?????????????"???"""?????????????????????????????? | | ?????????????????????????????????????????????????? | | ???????????????????????????????????????????????? | | ?????????????????????????????????????????????? | | ????????????????????????????????????????????? ### | | ?????????????????????????????????????????????????# | | ?????????????????????????????????????????????????# | | ?????????????????????????????????????????????????? | | ?????????????????????????????????????????????????? | | ?????????????????????????????????????????????????? | | ?????????????????????????????????????????????????? | | ?????????????????????????????????????????????????? | | ?????????????????????????????????????????????????? | | ?????????????????????????????????????????????????? | | ?????????????????????????????????????????????????? | | ?????????????????????????????????????????????????? | | ?????????????????????????????????????????????????? | | ?????????????????????????????????????????????????? | +----------------------------------------------------+ Best States ------------- Heat Dissipation 139 Coolant Potential 120 Energy Generation 85 Energy Capacity 3230 Matter Stores 300 Matter Capacity 300 Sight Range 24 Robot Scan Range 18 Terrain Scan Range 24 Terrain Scan Density 210 ECM Strength 3 Jamming Range 16 Cloak Strength 6 Base Temperature (-) 200 EM Shielding 2 Armor Coverage 1200 Resistance: KI 25 Resistance: TH 75 Resistance: EM 75 Core Shielding 30 Point Defense Rating 480 Projectile Deflection 15 Weapon Cycling 30 Phase Shifting 25 Evasion (%) 87 Targeting Accuracy 30 Core Analysis 8 Armor Integrity Analysis 40 Recoil Reduction 6 Particle Charging 15 Kinecelleration 66 Offensive Hacking 100 Defensive Hacking 20 Relay Coupler Types 2 Relay Coupler Value 77 Authchip Count 3 Trap Extractor Capacity 8 Item Schematics ----------------- Hcp. Storage Unit | -9/Recycling | Hacked Huge Storage Unit | -9/Recycling | Hacked Flak Cannon | -7/Factory | Hacked System Restoration Module | -7/Factory | Hacked Combat Drone Bay | -7/Data Miner | Free Lgt. Regenerative Plating | -7/Data Miner | Free Biomechanical Wings | -7/Data Miner | Free Gravity Neutralizer | -7/Data Miner | Free Imp. Heavy Laser | -7/Data Miner | Free Imp. Weapon Cycler | -7/Data Miner | Free Antigrav System | -7/Data Miner | Free Hyp. Gauss Cannon | -7/Data Miner | Free Imp. Hardlight Generator | -7/Data Miner | Free Imp. Coolant Injector | -7/Data Miner | Free Imp. Transmission Jammer | -7/Data Miner | Free Imp. Antigrav System | -7/Data Miner | Free Imp. Force Booster | -7/Data Miner | Free Shield Leg | -6/Extension | Hacked Hvy. Flak Cannon | -6/Extension | Hacked Thermic Laser | -6/Extension | Hacked Imp. System Restoration Module | -6/Extension | Hacked Cld. Plasma Cannon | -5/Factory | Scanalyzed Cld. Q-thruster | -5/Factory | Downloaded Zero-point Reactor | -4/Factory | Scanalyzed Adv. Force Field | -4/Factory | Scanalyzed Adv. Coolant Injector | -4/Factory | Scanalyzed Adv. Cryofiber Web | -4/Factory | Scanalyzed Enh. Nova Cannon | -4/Factory | Hacked Adv. Variable Charge Gun | -3/Testing | Archive Adv. Thermal Defense Suite | -3/Testing | Archive Com. Tesla Bomb Launcher | -3/Testing | Archive Exp. Thermal Shield | -3/Testing | Archive Smartbomb Launcher | -3/Testing | Archive Hvy. Shield Leg | -2/Research | Hacked Thermal Barrier | -2/Research | Scanalyzed Exp. Heat Sink | -2/Research | Scanalyzed Tiamat Missile Launcher | -2/Quarantine | Archive Exp. Thermal Generator | -2/Quarantine | Archive Adv. Dynamic Insulation System | -2/Quarantine | Archive Adv. Kinecellerator | -2/Quarantine | Archive Enh. Coil Gun | -2/Quarantine | Archive Exp. Energy Well | -2/Quarantine | Archive Hds. Centrium Wheel | -2/Quarantine | Archive Neutron Missile Launcher | -2/Quarantine | Archive Hvy. Dispersion Rifle | -2/Quarantine | Archive Imp. Diametric Drive | -2/Quarantine | Archive Adv. Myomer Leg | -2/Protoforge | Archive Cld. Field Propulsion Drive | -2/Protoforge | Archive Robot Schematics ------------------ M-13 Machinist | -9/Recycling | Hacked E-15 Imp | -7/Data Miner | Free A-15 Conveyor | -7/Data Miner | Free R-10 Processor | -7/Data Miner | Free B-48 Gladiator | -7/Data Miner | Free H-66 Slayer | -7/Data Miner | Free G-67 Veteran | -3/Research | Hacked G-73 Enforcer | -2/Quarantine | Archive B-74 Champion | -2/Quarantine | Archive A-27 Freighter | -2/Quarantine | Archive K-01 Serf | -2/Protoforge | Archive T-07 Excavator | -2/Protoforge | Archive Fabricated ------------ Imp. Antigrav System | x2 | -7/Factory | Preloaded Flak Cannon | x2 | -7/Factory System Restoration Module | x2 | -7/Factory | Authchip Linear Accelerator | x2 | -6/Factory | Preloaded Zero-point Reactor | x1 | -4/Factory Cld. Q-thruster | x1 | -4/Factory Hvy. Flak Cannon | x2 | -4/Factory Adv. VSS Leg | x2 | -4/Factory | Preloaded Imp. System Restoration Module | x2 | -4/Factory Hvy. Shield Leg | x1 | -4/Factory | Preloaded Imp. System Restoration Module | x2 | -2/Research Zero-point Reactor | x1 | -1/Access Hvy. Shield Leg | x1 | -1/Access Repaired ---------- Cryofiber Web | 99% | -7/Factory | Broken Adv. Phase Shifter | 8% | -4/Factory | Broken Centrium Medium Armor Plating | 50% | -4/Factory Adv. Force Field | 64% | -2/Quarantine Studied --------- Adv. Remote Datajack | -4/Factory | Hacked Imp. Remote Datajack | -4/Factory | Hacked Fusion Bomb Launcher | -3/Research | Hacked Alien Tech Used ----------------- Dimensional Node Initializer Phase Armor High-powered Transdimensional Reconstructor Achievements -------------- 150k Club Barbarian l33t h4x0r Challenges ------------ None Game ------ Seed ShockExplosiveFlightbrick Manual? 0 Play Time 12:25:21 Cumulative 761.9 hours Start 2026.04.27 @ 19:48:52 End 2026.04.29 @ 15:49:49 Sessions 5 Manual Loads 0 Difficulty Rogue Special Mode None Game No. 225 Rogue 225 Adventurer 0 Explorer 0 Win Type - Total 28 Types 10/3/7/1/1/0/2/1/1/2 Lore% 95 Gallery% 88 Achievement% 82 Wizard Run 0 Options --------- Layout 1 ASCII 0 Keyboard 0 Movement Mouse Keybinds 0 Fullscreen 2 Font 32/SmallcapsGlow Map View 50x35 Zoom Use 0% Tactical HUD 1 Map Filters NONE Filters NONE Steam 1 RUN: 4e73597b-2f53-4b15-81b5-31811bfe8451